Body Name,Body,Service Level,Expense Type,Expense Code,Narrative,Date,Transaction Number,Amount,Capital and Revenue,Supplier Name,Supplier ID
South Ribble Borough Council,http://statistics.data.gov.uk/id/local-authority/30UE,Central Support Services,Materials General,4040,"1 x new hose, PWR07NWT, JFC16687",18/08/2021,0000470984,411.00,Revenue,A C HYDRAULIC & PNEUMATIC SERVICES LTD,0
South Ribble Borough Council,http://statistics.data.gov.uk/id/local-authority/30UE,Central Support Services,Materials General,4040,"1 x caliper, PO20ZRX, JFC17041",25/08/2021,0000470114,702.00,Revenue,AA UK CV t/a Hydrair Truck & Trailer,0
South Ribble Borough Council,http://statistics.data.gov.uk/id/local-authority/30UE,Central Support Services,Materials General,4040,"2 x break chambers, VU11HSZ, JFC 16898",18/08/2021,0000471147,716.18,Revenue,AA UK CV t/a Hydrair Truck & Trailer,0
South Ribble Borough Council,http://statistics.data.gov.uk/id/local-authority/30UE,Capital,Cap Contract Payment,C230,Please supply a 10 yard enclosed skip to the folly caf� at worden park,18/08/2021,0000470992,270.00,Revenue,ABLE SKIP HIRE LTD,0
South Ribble Borough Council,http://statistics.data.gov.uk/id/local-authority/30UE,Elections,Polling Count Costs,4424,MICROPHONE AND SPEAKER EQUIPMENT FOR THE ELECTION COUNT (3 DAY HIRE) (50% OF OVERALL COST),06/08/2021,0000470940,480.80,Revenue,ACTIVE AV LTD,0
South Ribble Borough Council,http://statistics.data.gov.uk/id/local-authority/30UE,Elections,Polling Count Costs,4424,MICROPHONE AND SPEAKER EQUIPMENT FOR THE ELECTION COUNT (3 DAY HIRE) (50% OF OVERALL COST),06/08/2021,0000470940,480.80,Revenue,ACTIVE AV LTD,0
South Ribble Borough Council,http://statistics.data.gov.uk/id/local-authority/30UE,Recreation & Sport,Operational Equip & Tools,4010,replacement bulbs for spinning projector,18/08/2021,0000470993,673.58,Revenue,ACTIVE AV LTD,0
South Ribble Borough Council,http://statistics.data.gov.uk/id/local-authority/30UE,Economic Development,Reactive Repair & Maintenance,2020,Please remove hinges from incorrect toilet seat at Leyland market and supply and fit new toilet seat  in the ladies left hand cubicle toilet,18/08/2021,0000471153,210.00,Revenue,Ainscoe Plumbing & Heating Ltd,0
South Ribble Borough Council,http://statistics.data.gov.uk/id/local-authority/30UE,Economic Development,Reactive Repair & Maintenance,2020,"Please remove existing 4� glued tee and replace with new, reconnecting all surrounding sanitary ware wastes upon completion at Leyland market",18/08/2021,0000471153,790.00,Revenue,Ainscoe Plumbing & Heating Ltd,0
South Ribble Borough Council,http://statistics.data.gov.uk/id/local-authority/30UE,Local Tax Collection,Bank Charges,4811,post office,11/08/2021,0000470988,622.20,Revenue,ALLPAY LTD,0
South Ribble Borough Council,http://statistics.data.gov.uk/id/local-authority/30UE,Local Tax Collection,Bank Charges,4811,paypoint,11/08/2021,0000470988,67.60,Revenue,ALLPAY LTD,0
South Ribble Borough Council,http://statistics.data.gov.uk/id/local-authority/30UE,Local Tax Collection,Bank Charges,4811,webconn,11/08/2021,0000470988,46.00,Revenue,ALLPAY LTD,0
South Ribble Borough Council,http://statistics.data.gov.uk/id/local-authority/30UE,Community Development,Core Fund,4861,Work for the Cuerdale Heritage Trail Publication as agreed,11/08/2021,0000470924,480.00,Revenue,Andrew Allen,0
South Ribble Borough Council,http://statistics.data.gov.uk/id/local-authority/30UE,Capital,Capital Grant,C570,"DFG grant to adapt front steps as per specification and quote supplied of 2100.00, customer contribution of 407.60, total payable 1692.40",18/08/2021,0000471201,"4,006.40",Revenue,ASH BARN CONSTRUCTION LTD,0
South Ribble Borough Council,http://statistics.data.gov.uk/id/local-authority/30UE,Economic Development,Public Relations Strategy,4848,ATTAIN SOFTWARE (E-NEWSLETTER FOR 24 MONTHS),25/08/2021,0000471290,"6,299.00",Revenue,ATTAIN GROUP LIMITED,0
South Ribble Borough Council,http://statistics.data.gov.uk/id/local-authority/30UE,Recreation & Sport,Miscellaneous Expenses,4851,"Certificates 2000 x A5 x Blank School Swimming, 2000 x A5 x Water Safety School Swimming, 2000 x A5 x Advanced Water Safety",04/08/2021,0000470921,451.00,Revenue,B & D PRINT SERVICES LTD,0
South Ribble Borough Council,http://statistics.data.gov.uk/id/local-authority/30UE,Surplus or Deficit on Trading,Reactive Repair & Maintenance,2020,"Remedial works to fixed wire electrical installation, unit 2 Middleforth, Penwortham. Include replacement of electrical distribution board.",11/08/2021,0000470982,816.62,Revenue,BELEC ELECTRICAL LTD,0
South Ribble Borough Council,http://statistics.data.gov.uk/id/local-authority/30UE,Surplus or Deficit on Trading,Reactive Repair & Maintenance,2020,EIC report sent to facilities as Per NAME REDACTED instruction - retrospective as work was completed June 2021,18/08/2021,0000471155,618.26,Revenue,BELEC ELECTRICAL LTD,0
South Ribble Borough Council,http://statistics.data.gov.uk/id/local-authority/30UE,Capital,Cap Contract Payment,C230,"Provision Of catenary supply from Brewhouse to Conservatory, Worden Park, TEMP POWER SUPPLY - 13 July 2021 as per NAME REDACTED",25/08/2021,0000471203,744.10,Revenue,BELEC ELECTRICAL LTD,0
South Ribble Borough Council,http://statistics.data.gov.uk/id/local-authority/30UE,Suspended Items,Room Hire and Events,4630,Various Sports Equipment for HAF Project,11/08/2021,0000470035,779.50,Revenue,Bishop Sports & Leisure Ltd,0
South Ribble Borough Council,http://statistics.data.gov.uk/id/local-authority/30UE,Development Control,Professional Fees,4510,Q1 heritage services (period 01 April  30 June 2021) Hours 5.5hrs @ 50.00,13/08/2021,0000471039,275.00,Revenue,BLACKBURN WITH DARWEN BOROUGH COUNCIL,0
South Ribble Borough Council,http://statistics.data.gov.uk/id/local-authority/30UE,Community Development,External Catering Charges,4575,"Brakes Order, Bottled Water for Holiday Activity scheme, Deliveries ordered through Brakes website and delivered to multiple sites through Aug",18/08/2021,0000470996,368.08,Revenue,Brakes Broz Ltd,0
South Ribble Borough Council,http://statistics.data.gov.uk/id/local-authority/30UE,Community Development,External Catering Charges,4575,"Brakes Order, Bottled Water for Holiday Activity scheme, Deliveries ordered through Brakes website and delivered to multiple sites through Aug",18/08/2021,0000470998,385.28,Revenue,Brakes Broz Ltd,0
South Ribble Borough Council,http://statistics.data.gov.uk/id/local-authority/30UE,Recreation & Sport,Materials General,4040,4 x HTH de dusted granules 25 kg @ 96,04/08/2021,0000470838,384.00,Revenue,Brenntag UK Ltd,0
South Ribble Borough Council,http://statistics.data.gov.uk/id/local-authority/30UE,Recreation & Sport,Materials General,4040,3 x DPD1 lavibond water testing tablets photometer @ 10.50,04/08/2021,0000470838,31.50,Revenue,Brenntag UK Ltd,0
South Ribble Borough Council,http://statistics.data.gov.uk/id/local-authority/30UE,Recreation & Sport,Materials General,4040,3 x DPD3 lavibond water testing tablets photometer @ 10.50,04/08/2021,0000470838,31.50,Revenue,Brenntag UK Ltd,0
South Ribble Borough Council,http://statistics.data.gov.uk/id/local-authority/30UE,Recreation & Sport,Materials General,4040,3 x phenol red lavibond water testing tablets photometer @ 10.50,04/08/2021,0000470838,31.50,Revenue,Brenntag UK Ltd,0
South Ribble Borough Council,http://statistics.data.gov.uk/id/local-authority/30UE,Recreation & Sport,Materials General,4040,1 x Delivery charge 78,04/08/2021,0000470838,78.00,Revenue,Brenntag UK Ltd,0
South Ribble Borough Council,http://statistics.data.gov.uk/id/local-authority/30UE,Recreation & Sport,Consumable Clng Materials,2711,HTH0003NH - HTH DUSTED GRANUALS DRUM - x 7 - 68.88 each,25/08/2021,0000471370,672.00,Revenue,Brenntag UK Ltd,0
South Ribble Borough Council,http://statistics.data.gov.uk/id/local-authority/30UE,Recreation & Sport,Consumable Clng Materials,2711,SUL4507RH - sulphuric acide 25ltr - x 2 - 8.22 each,25/08/2021,0000471370,34.00,Revenue,Brenntag UK Ltd,0
South Ribble Borough Council,http://statistics.data.gov.uk/id/local-authority/30UE,Recreation & Sport,Consumable Clng Materials,2711,"2 x Containers Returned @ 17 each, 2 x Pallets Returned @ 12 each, 1 x Delivery charge @ 78",25/08/2021,0000471370,136.00,Revenue,Brenntag UK Ltd,0
South Ribble Borough Council,http://statistics.data.gov.uk/id/local-authority/30UE,Central Support Services,Operational Equip & Tools,4010,For paint and equipment for the Facilities Officers as per NAME REDACTED,18/08/2021,0000471119,368.67,Revenue,BROMBOROUGH PAINTS,0
South Ribble Borough Council,http://statistics.data.gov.uk/id/local-authority/30UE,Central Support Services,Materials General,4040,"1 x Brush Motor 72250, GX19DZF, JFC17037",04/08/2021,0000470744,427.80,Revenue,Bucher Municipal Ltd,0
South Ribble Borough Council,http://statistics.data.gov.uk/id/local-authority/30UE,Recreation & Sport,Cleaning,2710,"Allied Hydromax Diamond Q-Folded Cloth Blue (PK 50) x1, 1.69, Red (PK 50) x1, 1.69, Green (PK 50)",18/08/2021,0000470107,407.04,Revenue,Bunzl UK Ltd T/A Cleaning and HygieneSupplies,0
South Ribble Borough Council,http://statistics.data.gov.uk/id/local-authority/30UE,Surplus or Deficit on Trading,Reactive Repair & Maintenance,2020,"Supplies for landscaping works, rear garden of North Lodge, Worden Park - Limestone, golden gravel, tantalised timber edgings, railway sleepers",18/08/2021,0000471112,"1,740.10",Revenue,C & W BERRY LTD,0
South Ribble Borough Council,http://statistics.data.gov.uk/id/local-authority/30UE,Open Spaces,Materials General,4040,Pipe work,25/08/2021,0000471115,275.01,Revenue,C & W BERRY LTD,0
South Ribble Borough Council,http://statistics.data.gov.uk/id/local-authority/30UE,Capital,Cap Contract Payment,C230,To carry out urgent works to the unsafe memorials within the closed grave yard at St Mary`s Church Penwortham,13/08/2021,0000471105,"3,000.00",Revenue,C B Price & Son Ltd,0
South Ribble Borough Council,http://statistics.data.gov.uk/id/local-authority/30UE,Open Spaces,GM Refurbishment,4657,41 no resolute ductile iron bollards as per quote REF E11969 including Delivery,04/08/2021,0000470925,"11,744.00",Revenue,Candela Traditional Lighting Ltd T/A Candela light,0
South Ribble Borough Council,http://statistics.data.gov.uk/id/local-authority/30UE,Central Support Services,Other Fees,4520,DWP LA Data Sharing Programme: IT Costs to 31.3.2021,06/08/2021,0000470936,"2,973.30",Revenue,CAPITA BUSINESS SERVICES LTD,0
South Ribble Borough Council,http://statistics.data.gov.uk/id/local-authority/30UE,Central Support Services,Other Fees,4520,VOA Occupier Data and ERD/Nursery Discount,06/08/2021,0000470943,832.00,Revenue,CAPITA BUSINESS SERVICES LTD,0
South Ribble Borough Council,http://statistics.data.gov.uk/id/local-authority/30UE,Central Support Services,Agency Staff,1121,Planning consultant to deal with Planning applications for the next 6 months,06/08/2021,0000470050,"1,883.02",Revenue,CAPITA PROPERTY AND INFRASTRUCTURE LTD,0
South Ribble Borough Council,http://statistics.data.gov.uk/id/local-authority/30UE,Recreation & Sport,Reactive Repair & Maintenance,2020,Optical detector replacement x 7,11/08/2021,0000470951,721.26,Revenue,CHUBB LTD,0
South Ribble Borough Council,http://statistics.data.gov.uk/id/local-authority/30UE,Recreation & Sport,Reactive Repair & Maintenance,2020,standard additional hours work x5,11/08/2021,0000470951,365.00,Revenue,CHUBB LTD,0
South Ribble Borough Council,http://statistics.data.gov.uk/id/local-authority/30UE,Recreation & Sport,Reactive Repair & Maintenance,2020,additional item - call out charge,11/08/2021,0000470951,183.18,Revenue,CHUBB LTD,0
South Ribble Borough Council,http://statistics.data.gov.uk/id/local-authority/30UE,Local Tax Collection,Postage General,4291,Postage April - October 2021,11/08/2021,0000471031,276.80,Revenue,CRITIQOM,0
South Ribble Borough Council,http://statistics.data.gov.uk/id/local-authority/30UE,Local Tax Collection,Postage General,4291,Postage April - October 2021,25/08/2021,0000471322,364.05,Revenue,CRITIQOM,0
South Ribble Borough Council,http://statistics.data.gov.uk/id/local-authority/30UE,Short Term Debtors,Amount Paid,0030,CYCLESCHEME BIKE PACKAGE FOR NAME REDACTED,04/08/2021,0000470833,"1,153.33",Revenue,CYCLESCHEME CO  UK,0
South Ribble Borough Council,http://statistics.data.gov.uk/id/local-authority/30UE,Central Support Services,Materials General,4040,1 alternator VX18 KLC JFC17089,11/08/2021,0000471001,905.37,Revenue,DENNIS EAGLE LTD,0
South Ribble Borough Council,http://statistics.data.gov.uk/id/local-authority/30UE,Central Support Services,Materials General,4040,1 filter kit VU58 JXK JFC17058,18/08/2021,0000471002,311.20,Revenue,DENNIS EAGLE LTD,0
South Ribble Borough Council,http://statistics.data.gov.uk/id/local-authority/30UE,Central Support Services,Materials General,4040,"1 x full filter kit, 1 x flasher unit, 1 x oxygen sensor, VX18KLC, JFC17116",18/08/2021,0000471145,481.70,Revenue,DENNIS EAGLE LTD,0
South Ribble Borough Council,http://statistics.data.gov.uk/id/local-authority/30UE,Central Support Services,Materials General,4040,"2 x air bags, 2 x studs, 1 x bush, 1 x end cover, 10 x rivets, 1 x filter kit, VA19KOX, JFC17145",25/08/2021,0000471287,"1,647.89",Revenue,DENNIS EAGLE LTD,0
South Ribble Borough Council,http://statistics.data.gov.uk/id/local-authority/30UE,Central Support Services,Materials General,4040,"1 x air bag, 2 x bump stops, VA19KOX, JFC17145",25/08/2021,0000471288,447.17,Revenue,DENNIS EAGLE LTD,0
South Ribble Borough Council,http://statistics.data.gov.uk/id/local-authority/30UE,Capital,Cap Vehicles,C440,12 Months Road Fund Licence for VO21LZJ + 3 additional weeks,25/08/2021,0000471333,316.00,Revenue,DENNIS EAGLE LTD,0
South Ribble Borough Council,http://statistics.data.gov.uk/id/local-authority/30UE,Capital,Cap Vehicles,C440,12 Months Road Fund Licence for VO21YVG,25/08/2021,0000471333,300.00,Revenue,DENNIS EAGLE LTD,0
South Ribble Borough Council,http://statistics.data.gov.uk/id/local-authority/30UE,Capital,Cap Vehicles,C440,12 Months Road Fund Licence for VO21YVK + 3 additional weeks,25/08/2021,0000471333,316.00,Revenue,DENNIS EAGLE LTD,0
South Ribble Borough Council,http://statistics.data.gov.uk/id/local-authority/30UE,Capital,Cap Vehicles,C440,12 Months Road Fund Licence for VO21YVL + 3 additional weeks,25/08/2021,0000471333,316.00,Revenue,DENNIS EAGLE LTD,0
South Ribble Borough Council,http://statistics.data.gov.uk/id/local-authority/30UE,Capital,Cap Vehicles,C440,4 x First Registration Fees,25/08/2021,0000471333,220.00,Revenue,DENNIS EAGLE LTD,0
South Ribble Borough Council,http://statistics.data.gov.uk/id/local-authority/30UE,Open Spaces,GM Refurbishment,4657,3 x RANGER ALL STEEL TRI-TABLE WITH GALVANISED FINISH,11/08/2021,0000469907,"2,694.00",Revenue,EARTH ANCHORS LTD,0
South Ribble Borough Council,http://statistics.data.gov.uk/id/local-authority/30UE,Capital,Cap Contract Payment,C230,2 x EVERGREEN SEAT WITH METAL IN GREEN,11/08/2021,0000469907,"1,192.00",Revenue,EARTH ANCHORS LTD,0
South Ribble Borough Council,http://statistics.data.gov.uk/id/local-authority/30UE,Open Spaces,GM Refurbishment,4657,4 x EVERGREEN SEAT WITH METAL IN BLACK,11/08/2021,0000469907,"2,384.00",Revenue,EARTH ANCHORS LTD,0
South Ribble Borough Council,http://statistics.data.gov.uk/id/local-authority/30UE,Open Spaces,GM Refurbishment,4657,1 x FOREST SAVER SEAT WITH METAL GALVANISED FINISH,11/08/2021,0000469907,349.00,Revenue,EARTH ANCHORS LTD,0
South Ribble Borough Council,http://statistics.data.gov.uk/id/local-authority/30UE,Open Spaces,GM Refurbishment,4657,DELIVERY TO PR26 7QR,11/08/2021,0000469907,128.00,Revenue,EARTH ANCHORS LTD,0
South Ribble Borough Council,http://statistics.data.gov.uk/id/local-authority/30UE,Central Support Services,Materials General,4040,4 x taper roller bearing sets- BIN J182,18/08/2021,0000471061,333.80,Revenue,ERIKS INDUSTRIAL SERVICES,0
South Ribble Borough Council,http://statistics.data.gov.uk/id/local-authority/30UE,Waste Collection,External Contractors Charges,4570,Residual Waste Collections- June2021,04/08/2021,0000469862,"45,839.72",Revenue,FCC Environment Services (UK) Ltd,0
South Ribble Borough Council,http://statistics.data.gov.uk/id/local-authority/30UE,Recycling,External Contractors Charges,4570,Dry recylable non terrace- June 2021,04/08/2021,0000469862,"46,926.36",Revenue,FCC Environment Services (UK) Ltd,0
South Ribble Borough Council,http://statistics.data.gov.uk/id/local-authority/30UE,Recycling,External Contractors Charges,4570,Dry recyclable - terraced,04/08/2021,0000469862,"2,233.78",Revenue,FCC Environment Services (UK) Ltd,0
South Ribble Borough Council,http://statistics.data.gov.uk/id/local-authority/30UE,Recycling,External Contractors Charges,4570,Organic waste- non terraced- June 2021,04/08/2021,0000469862,"32,490.07",Revenue,FCC Environment Services (UK) Ltd,0
South Ribble Borough Council,http://statistics.data.gov.uk/id/local-authority/30UE,Trade Waste,External Contractors Charges,4570,Schedule 2 properties- June 2021,04/08/2021,0000469862,"1,868.87",Revenue,FCC Environment Services (UK) Ltd,0
South Ribble Borough Council,http://statistics.data.gov.uk/id/local-authority/30UE,Trade Waste,External Contractors Charges,4570,Commercial waste collections - June 2021,04/08/2021,0000469862,"7,274.67",Revenue,FCC Environment Services (UK) Ltd,0
South Ribble Borough Council,http://statistics.data.gov.uk/id/local-authority/30UE,Waste Collection,External Contractors Charges,4570,Bulky waste collections - June 2021,04/08/2021,0000469862,"1,009.74",Revenue,FCC Environment Services (UK) Ltd,0
South Ribble Borough Council,http://statistics.data.gov.uk/id/local-authority/30UE,Waste Collection,External Contractors Charges,4570,WEEE collections - June 2021,04/08/2021,0000469862,379.38,Revenue,FCC Environment Services (UK) Ltd,0
South Ribble Borough Council,http://statistics.data.gov.uk/id/local-authority/30UE,Waste Collection,External Contractors Charges,4570,Clinical waste collections- June 2021,04/08/2021,0000469862,646.32,Revenue,FCC Environment Services (UK) Ltd,0
South Ribble Borough Council,http://statistics.data.gov.uk/id/local-authority/30UE,Waste Collection,External Contractors Charges,4570,Replacement Bins- June 2021,04/08/2021,0000469862,"5,000.00",Revenue,FCC Environment Services (UK) Ltd,0
South Ribble Borough Council,http://statistics.data.gov.uk/id/local-authority/30UE,Waste Collection,External Contractors Charges,4570,Additional Properties- June 2021,04/08/2021,0000469862,"5,233.70",Revenue,FCC Environment Services (UK) Ltd,0
South Ribble Borough Council,http://statistics.data.gov.uk/id/local-authority/30UE,Short Term Creditors,Amount Paid,0030,less ret,04/08/2021,0000469862,"-3,112.62",Revenue,FCC Environment Services (UK) Ltd,0
South Ribble Borough Council,http://statistics.data.gov.uk/id/local-authority/30UE,Short Term Creditors,Amount Paid,0030,less ret,04/08/2021,0000469862,"-4,082.51",Revenue,FCC Environment Services (UK) Ltd,0
South Ribble Borough Council,http://statistics.data.gov.uk/id/local-authority/30UE,Waste Collection,External Contractors Charges,4570,additional clinical waste collections May 2021.,11/08/2021,0000470818,424.58,Revenue,FCC Environment Services (UK) Ltd,0
South Ribble Borough Council,http://statistics.data.gov.uk/id/local-authority/30UE,Short Term Creditors,Amount Paid,0030,ret,11/08/2021,0000470818,-21.23,Revenue,FCC Environment Services (UK) Ltd,0
South Ribble Borough Council,http://statistics.data.gov.uk/id/local-authority/30UE,Waste Collection,External Contractors Charges,4570,Additional bulky waste collections-July 2021,11/08/2021,0000470973,"1,389.15",Revenue,FCC Environment Services (UK) Ltd,0
South Ribble Borough Council,http://statistics.data.gov.uk/id/local-authority/30UE,Waste Collection,External Contractors Charges,4570,Additional WEEE collections- July 2021,11/08/2021,0000470973,728.16,Revenue,FCC Environment Services (UK) Ltd,0
South Ribble Borough Council,http://statistics.data.gov.uk/id/local-authority/30UE,Short Term Creditors,Amount Paid,0030,ret waste,11/08/2021,0000470973,-105.90,Revenue,FCC Environment Services (UK) Ltd,0
South Ribble Borough Council,http://statistics.data.gov.uk/id/local-authority/30UE,Waste Collection,External Contractors Charges,4570,Additional Clinical Waste Collections - July 2021,11/08/2021,0000470974,568.70,Revenue,FCC Environment Services (UK) Ltd,0
South Ribble Borough Council,http://statistics.data.gov.uk/id/local-authority/30UE,Short Term Creditors,Amount Paid,0030,ret june,11/08/2021,0000470974,-28.44,Revenue,FCC Environment Services (UK) Ltd,0
South Ribble Borough Council,http://statistics.data.gov.uk/id/local-authority/30UE,Waste Collection,External Contractors Charges,4570,Residual Waste Collections - July 2021,25/08/2021,0000471327,"47,367.71",Revenue,FCC Environment Services (UK) Ltd,0
South Ribble Borough Council,http://statistics.data.gov.uk/id/local-authority/30UE,Recycling,External Contractors Charges,4570,Dry recylable non terrace- July 2021,25/08/2021,0000471327,"48,490.57",Revenue,FCC Environment Services (UK) Ltd,0
South Ribble Borough Council,http://statistics.data.gov.uk/id/local-authority/30UE,Recycling,External Contractors Charges,4570,Dry recylable - terraced July 2021,25/08/2021,0000471327,"2,308.24",Revenue,FCC Environment Services (UK) Ltd,0
South Ribble Borough Council,http://statistics.data.gov.uk/id/local-authority/30UE,Recycling,External Contractors Charges,4570,Organic waste - non terraced- July 2021,25/08/2021,0000471327,"33,573.08",Revenue,FCC Environment Services (UK) Ltd,0
South Ribble Borough Council,http://statistics.data.gov.uk/id/local-authority/30UE,Trade Waste,External Contractors Charges,4570,Schedule 2 properties- July 2021,25/08/2021,0000471327,"1,931.17",Revenue,FCC Environment Services (UK) Ltd,0
South Ribble Borough Council,http://statistics.data.gov.uk/id/local-authority/30UE,Trade Waste,External Contractors Charges,4570,Commercial waste collections - July 2021,25/08/2021,0000471327,"7,517.16",Revenue,FCC Environment Services (UK) Ltd,0
South Ribble Borough Council,http://statistics.data.gov.uk/id/local-authority/30UE,Waste Collection,External Contractors Charges,4570,Bulky waste collections- July 2021,25/08/2021,0000471327,"1,043.40",Revenue,FCC Environment Services (UK) Ltd,0
South Ribble Borough Council,http://statistics.data.gov.uk/id/local-authority/30UE,Waste Collection,External Contractors Charges,4570,WEEE collections - July 2021,25/08/2021,0000471327,392.02,Revenue,FCC Environment Services (UK) Ltd,0
South Ribble Borough Council,http://statistics.data.gov.uk/id/local-authority/30UE,Waste Collection,External Contractors Charges,4570,Clinical Waste Collections - July 2021,25/08/2021,0000471327,667.86,Revenue,FCC Environment Services (UK) Ltd,0
South Ribble Borough Council,http://statistics.data.gov.uk/id/local-authority/30UE,Waste Collection,External Contractors Charges,4570,Replacement Bins- July 2021,25/08/2021,0000471327,"5,000.00",Revenue,FCC Environment Services (UK) Ltd,0
South Ribble Borough Council,http://statistics.data.gov.uk/id/local-authority/30UE,Waste Collection,External Contractors Charges,4570,Additional Properties- July 2021,25/08/2021,0000471327,"5,408.15",Revenue,FCC Environment Services (UK) Ltd,0
South Ribble Borough Council,http://statistics.data.gov.uk/id/local-authority/30UE,Short Term Creditors,Amount Paid,0030,refuse retention,25/08/2021,0000471327,"-3,216.37",Revenue,FCC Environment Services (UK) Ltd,0
South Ribble Borough Council,http://statistics.data.gov.uk/id/local-authority/30UE,Short Term Creditors,Amount Paid,0030,recycling ret,25/08/2021,0000471327,"-4,218.59",Revenue,FCC Environment Services (UK) Ltd,0
South Ribble Borough Council,http://statistics.data.gov.uk/id/local-authority/30UE,Recreation & Sport,Reactive Repair & Maintenance,2020,Leyland Chemical service report,04/08/2021,0000470821,283.20,Revenue,FT Leisure Ltd,0
South Ribble Borough Council,http://statistics.data.gov.uk/id/local-authority/30UE,Recreation & Sport,Planned Annual Repair & Maintenance,2021,Cost of consumables 286.37,13/08/2021,0000471158,286.37,Revenue,FT Leisure Ltd,0
South Ribble Borough Council,http://statistics.data.gov.uk/id/local-authority/30UE,Central Support Services,Legal,4821,PROFESSIONAL SERVICES WITH REGARD TO WAINHOMES V SOS & SRBC - CHAIN HOUSE LANE (S288 CHALLENGE),18/08/2021,0000471281,"1,400.00",Revenue,Giles Cannock,0
South Ribble Borough Council,http://statistics.data.gov.uk/id/local-authority/30UE,Recreation & Sport,Miscellaneous Expenses,4851,Delivery of Group exercise in June 2021,04/08/2021,0000470916,895.00,Revenue,Gillian Hall,0
South Ribble Borough Council,http://statistics.data.gov.uk/id/local-authority/30UE,Recreation & Sport,Miscellaneous Expenses,4851,Delivery of group exercise classes in July 2021,06/08/2021,0000471003,820.00,Revenue,Gillian Hall,0
South Ribble Borough Council,http://statistics.data.gov.uk/id/local-authority/30UE,Housing Advice,Contributions to Other Bodies,4730,GAS APPLIANCE REPAIRS FOR WINTER WARM  SCHEME 2021/2022,11/08/2021,0000470037,288.85,Revenue,GOS Heating Ltd,0
South Ribble Borough Council,http://statistics.data.gov.uk/id/local-authority/30UE,Democratic Represent and  Mgnt,Members Training,1406,"NAME REDACTED TO ATTEND VIRTUAL EVENT, WORKING IN PARTNERSHIP TO SAFEGUARD CHILDREN & YOUNG PEOPLE",25/08/2021,0000471165,289.00,Revenue,Government Events,0
South Ribble Borough Council,http://statistics.data.gov.uk/id/local-authority/30UE,Central Support Services,Reactive Repair & Maintenance,2020,"Please carry out works to Moss Side Depot as per NAME REDACTED request, Drainage Remedial works. Report and recommendations",13/08/2021,0000470976,"4,250.00",Revenue,GRAHAM SCHOFIELD ASSOCIATES,0
South Ribble Borough Council,http://statistics.data.gov.uk/id/local-authority/30UE,Community Development,Miscellaneous Expenses,4851,Grant of 1000 towards Covid Vulnerable project,18/08/2021,0000471004,"1,000.00",Revenue,GREGSON GREEN HALL MANAGEMENT ACCOUNT,0
South Ribble Borough Council,http://statistics.data.gov.uk/id/local-authority/30UE,Central Support Services,Materials General,4040,1 x WP1577 Merc Disc Pad Kit Bin 538,06/08/2021,0000470931,125.00,Revenue,H & J SERVICES LTD,0
South Ribble Borough Council,http://statistics.data.gov.uk/id/local-authority/30UE,Central Support Services,Materials General,4040,4 x WP1389 DAF BRAKE PAD KIT BIN541 @ 144.50,06/08/2021,0000470931,578.00,Revenue,H & J SERVICES LTD,0
South Ribble Borough Council,http://statistics.data.gov.uk/id/local-authority/30UE,Central Support Services,Materials General,4040,2 X EKBS087 VOLVO/DENNIS BRAKE PAD KIT BIN 539 @ 95.00,06/08/2021,0000470931,190.00,Revenue,H & J SERVICES LTD,0
South Ribble Borough Council,http://statistics.data.gov.uk/id/local-authority/30UE,Central Support Services,Materials General,4040,4 x dennis/volvo break pads- BIN539,18/08/2021,0000471199,380.00,Revenue,H & J SERVICES LTD,0
South Ribble Borough Council,http://statistics.data.gov.uk/id/local-authority/30UE,Capital,Cap Vehicles,C440,2 x Transporter Vehicles as per tender dated 22.7.20,06/08/2021,0000469689,"33,345.10",Revenue,Hamble Motors Ltd,0
South Ribble Borough Council,http://statistics.data.gov.uk/id/local-authority/30UE,Capital,Cap Vehicles,C440,Non Tax Item,06/08/2021,0000469689,320.00,Revenue,Hamble Motors Ltd,0
South Ribble Borough Council,http://statistics.data.gov.uk/id/local-authority/30UE,Capital,Cap Contract Payment,C230,Penwortham Masterplan Project,04/08/2021,0000469940,"8,033.00",Revenue,Hem Des LLP,0
South Ribble Borough Council,http://statistics.data.gov.uk/id/local-authority/30UE,Central Support Services,Operational Equip & Tools,4010,"Mifare 1K Standard NXP Proximity Cards, 32 Bit Reading 10 UID number, 200 x 2.20 + Delivery Fee of 8.50",18/08/2021,0000471167,448.50,Revenue,HFX LTD,0
South Ribble Borough Council,http://statistics.data.gov.uk/id/local-authority/30UE,Short Term Creditors,Amount Received,0140,,11/08/2021,0000470064,"1,103.62",Revenue,HM REVENUE & CUSTOMS,0
South Ribble Borough Council,http://statistics.data.gov.uk/id/local-authority/30UE,Community Development,Core Fund,4861,"Cardiff C lectern and delivery, as per quote number SO24109.",18/08/2021,0000470053,"1,391.00",Revenue,Hornbeck Ltd T/A Landmark,0
South Ribble Borough Council,http://statistics.data.gov.uk/id/local-authority/30UE,Central Support Services,Network and Security,4247,SRBC Teams Voice Migration as per your quote HS20210615-1247,25/08/2021,0000470914,"4,775.00",Revenue,Hybrit Services Limited,0
South Ribble Borough Council,http://statistics.data.gov.uk/id/local-authority/30UE,Capital,Cap Contract Payment,C230,Final Account,18/08/2021,0000471151,"1,060.00",Revenue,Ian Brew QS Consultancy,0
South Ribble Borough Council,http://statistics.data.gov.uk/id/local-authority/30UE,Recreation & Sport,Software Licensing,4243,"ATC Fee - 01 April 2021 to 31 March 2022, Leyland Leisure Centre, Bamber Bridge Leisure Centre",18/08/2021,0000471131,260.00,Revenue,IQL UK Limited,0
South Ribble Borough Council,http://statistics.data.gov.uk/id/local-authority/30UE,Capital,Cap Contract Payment,C230,"Architects Fees for Stages 5 and 6, Hurst Grange Coach House, Penwortham",11/08/2021,0000470747,"1,070.00",Revenue,Ivan Wilson Architect,0
South Ribble Borough Council,http://statistics.data.gov.uk/id/local-authority/30UE,Capital,Cap Contract Payment,C230,"Supply and installation of kitchen equipment as per Quote Ref 200569A - Rev B, Hurst Grange Coach House, Penwortham, Preston",11/08/2021,0000470912,"16,051.00",Revenue,James Taylor (Business & Catering) Ltd,0
South Ribble Borough Council,http://statistics.data.gov.uk/id/local-authority/30UE,Surplus or Deficit on Trading,Reactive Repair & Maintenance,2020,ADDRESS REDACTED. No EPC lodged yet,13/08/2021,0000471092,275.00,Revenue,Jane Needham Ltd,0
South Ribble Borough Council,http://statistics.data.gov.uk/id/local-authority/30UE,Surplus or Deficit on Trading,Reactive Repair & Maintenance,2020,ADDRESS REDACTED. No EPC lodged for this address,13/08/2021,0000471092,250.00,Revenue,Jane Needham Ltd,0
South Ribble Borough Council,http://statistics.data.gov.uk/id/local-authority/30UE,Surplus or Deficit on Trading,Reactive Repair & Maintenance,2020,ADDRESS REDACTED. No EPC lodged for this address,18/08/2021,0000471125,350.00,Revenue,Jane Needham Ltd,0
South Ribble Borough Council,http://statistics.data.gov.uk/id/local-authority/30UE,Open Spaces,GM Refurbishment,4657,"200T PAS100, 20 mm grade compost delivered to Haig avenue Green, Leyland",25/08/2021,0000471006,821.52,Revenue,JOHN COOPER RECYCLING LTD,0
South Ribble Borough Council,http://statistics.data.gov.uk/id/local-authority/30UE,Open Spaces,GM Refurbishment,4657,"200T PAS100, 20 mm grade compost delivered to Haig avenue Green, Leyland",25/08/2021,0000471118,376.80,Revenue,JOHN COOPER RECYCLING LTD,0
South Ribble Borough Council,http://statistics.data.gov.uk/id/local-authority/30UE,Open Spaces,GM Refurbishment,4657,"Up to 200T PAS 100 20mm grade compost delivered to Haig Avenue, Leyland",25/08/2021,0000471282,805.92,Revenue,JOHN COOPER RECYCLING LTD,0
South Ribble Borough Council,http://statistics.data.gov.uk/id/local-authority/30UE,Capital,Cap Contract Payment,C230,Traffic notice advertisements in the Lancashire Evening Post and Preston Today.,11/08/2021,0000469714,"1,053.00",Revenue,JPI Media - JOHNSTON PUBLISHING (NORTH WEST),0
South Ribble Borough Council,http://statistics.data.gov.uk/id/local-authority/30UE,Development Control,Advertising,4841,Purchase order - for public notices for planning applications appearing in the LEP,06/08/2021,0000469804,729.00,Revenue,JPI Media - JOHNSTON PUBLISHING (NORTH WEST),0
South Ribble Borough Council,http://statistics.data.gov.uk/id/local-authority/30UE,Development Control,Advertising,4841,Purchase order - for public notices for planning applications appearing in the LEP,06/08/2021,0000469854,729.00,Revenue,JPI Media - JOHNSTON PUBLISHING (NORTH WEST),0
South Ribble Borough Council,http://statistics.data.gov.uk/id/local-authority/30UE,Development Control,Advertising,4841,Purchase order - for public notices for planning applications appearing in the LEP,18/08/2021,0000471211,891.00,Revenue,JPI Media - JOHNSTON PUBLISHING (NORTH WEST),0
South Ribble Borough Council,http://statistics.data.gov.uk/id/local-authority/30UE,Capital,Cap Vehicles,C440,Livery to 4 x RCV (480.00) as per your email dated 1.7.21,25/08/2021,0000470056,480.00,Revenue,KDJ Dezigns LTD T/A Sign Dezign,0
South Ribble Borough Council,http://statistics.data.gov.uk/id/local-authority/30UE,Central Support Services,Planned Annual Repair & Maintenance,2021,"Annual Contract, 2021/2022, Service of Evacuation Chairs at Civic Centre, service of PUWER Annual Evacuation Chair, contact NAME REDACTED",06/08/2021,0000470907,420.00,Revenue,K-FIVE SALES LIMITED,0
South Ribble Borough Council,http://statistics.data.gov.uk/id/local-authority/30UE,Planning Policy,Professional Fees,4510,Central Lancashire  PPS - Stage E Review,06/08/2021,0000471038,"4,950.00",Revenue,KNIGHT KAVANAGH & PAGE LTD,0
South Ribble Borough Council,http://statistics.data.gov.uk/id/local-authority/30UE,Capital,Misc Capital Payments,C234,3rd party contribution,18/08/2021,0000471133,"3,300.00",Revenue,Lancashire environmental fund,0
South Ribble Borough Council,http://statistics.data.gov.uk/id/local-authority/30UE,Corporate Management,Professional Fees,4510,LCC Payroll charges for setting up two new element codes on the payroll system relating to Shared Services,04/08/2021,0000470749,"1,701.00",Revenue,LANCS COUNTY COUNCIL,0
South Ribble Borough Council,http://statistics.data.gov.uk/id/local-authority/30UE,Capital,Capital Grant,C570,DFG WORK TO SUPPLY AND INSTALL STAIRLIFT UNDER OLD SYSTEM AT ADDRESS REDACTED AS PER QUOTE SUPPLIED,06/08/2021,0000470983,"6,024.00",Revenue,LANCS COUNTY COUNCIL,0
South Ribble Borough Council,http://statistics.data.gov.uk/id/local-authority/30UE,Development Control,Professional Fees,4510,The provision of specialist archaeological advice 2021-24 - Year 1 2021-22,06/08/2021,0000471049,"1,970.00",Revenue,LANCS COUNTY COUNCIL,0
South Ribble Borough Council,http://statistics.data.gov.uk/id/local-authority/30UE,Capital,Cap Contract Payment,C230,Section 278 agreement for site at Brindle Road Bamber Bridge - Legal fees 50% up front,18/08/2021,0000471173,750.00,Revenue,LANCS COUNTY COUNCIL,0
South Ribble Borough Council,http://statistics.data.gov.uk/id/local-authority/30UE,Capital,Cap Contract Payment,C230,Section 278 agreement for site at Brindle Road Bamber Bridge - highways admin fees 50% up front,18/08/2021,0000471173,625.00,Revenue,LANCS COUNTY COUNCIL,0
South Ribble Borough Council,http://statistics.data.gov.uk/id/local-authority/30UE,Central Support Services,Materials General,4040,"1 x spring brake chamber, YD19AUO, JFC17101",11/08/2021,0000471007,966.00,Revenue,LANCS DAF,0
South Ribble Borough Council,http://statistics.data.gov.uk/id/local-authority/30UE,Open Spaces,External Contractors Charges,4570,Work � tree felling at Preston Junction Amount as per NAME REDACTED request,06/08/2021,0000470932,562.50,Revenue,LANCS WILDLIFE TRUST,0
South Ribble Borough Council,http://statistics.data.gov.uk/id/local-authority/30UE,Open Spaces,Professional Fees,4510,"Annual management of Friends of Preston Junction volunteer group, management and maintenance of Preston Junction/Central Parks",25/08/2021,0000471189,"1,250.00",Revenue,LANCS WILDLIFE TRUST,0
South Ribble Borough Council,http://statistics.data.gov.uk/id/local-authority/30UE,Democratic Represent and  Mgnt,Corp Subs to Professional Bodies,4720,LGA MEMBERSHIP SUBSCRIPTION RENEWAL FOR 2021-2022,06/08/2021,0000470070,"11,158.29",Revenue,LGA (LOCAL GOVERNMENT ASSOCIATION),0
South Ribble Borough Council,http://statistics.data.gov.uk/id/local-authority/30UE,Local Tax Collection,Consultancy Fees,4541,Empty Home Review June 21,06/08/2021,0000470938,"1,117.70",Revenue,LIBERATA UK LTD,0
South Ribble Borough Council,http://statistics.data.gov.uk/id/local-authority/30UE,Local Tax Collection,Consultancy Fees,4541,Empty Home Review May 21,13/08/2021,0000471104,"1,834.71",Revenue,LIBERATA UK LTD,0
South Ribble Borough Council,http://statistics.data.gov.uk/id/local-authority/30UE,Central Support Services,Operational Equip & Tools,4010,PADLOCKS,18/08/2021,0000471030,295.80,Revenue,M A C BUILDING PRODUCTS LTD,0
South Ribble Borough Council,http://statistics.data.gov.uk/id/local-authority/30UE,Open Spaces,GM Refurbishment,4657,40T x 10mm Gravel delivered to Haig Avenue Leyland,25/08/2021,0000471192,"1,078.55",Revenue,M C & M A STEWART HAULAGE LTD,0
South Ribble Borough Council,http://statistics.data.gov.uk/id/local-authority/30UE,Parking Services,Materials General,4040,2 x CHURCH ROAD  T,04/08/2021,0000469467,102.00,Revenue,Main Street Signs Ltd,0
South Ribble Borough Council,http://statistics.data.gov.uk/id/local-authority/30UE,Parking Services,Materials General,4040,1 x FOXGLOVE CLOSE   T,04/08/2021,0000469467,54.30,Revenue,Main Street Signs Ltd,0
South Ribble Borough Council,http://statistics.data.gov.uk/id/local-authority/30UE,Parking Services,Materials General,4040,3 x LARCHWOOD CRESCENT,04/08/2021,0000469467,161.10,Revenue,Main Street Signs Ltd,0
South Ribble Borough Council,http://statistics.data.gov.uk/id/local-authority/30UE,Parking Services,Materials General,4040,1 x REDWOOD AVENUE,04/08/2021,0000469467,49.30,Revenue,Main Street Signs Ltd,0
South Ribble Borough Council,http://statistics.data.gov.uk/id/local-authority/30UE,Parking Services,Materials General,4040,3 x GORSEWOOD ROAD,04/08/2021,0000469467,147.90,Revenue,Main Street Signs Ltd,0
South Ribble Borough Council,http://statistics.data.gov.uk/id/local-authority/30UE,Parking Services,Materials General,4040,1 x CHERRYWOOD CLOSE   T,04/08/2021,0000469467,56.50,Revenue,Main Street Signs Ltd,0
South Ribble Borough Council,http://statistics.data.gov.uk/id/local-authority/30UE,Parking Services,Materials General,4040,1 x BRIARWOOD CLOSE   T,04/08/2021,0000469467,55.40,Revenue,Main Street Signs Ltd,0
South Ribble Borough Council,http://statistics.data.gov.uk/id/local-authority/30UE,Parking Services,Materials General,4040,2 x EARNSHAW DRIVE,04/08/2021,0000469467,98.60,Revenue,Main Street Signs Ltd,0
South Ribble Borough Council,http://statistics.data.gov.uk/id/local-authority/30UE,Parking Services,Materials General,4040,2 x LEADALE ROAD,04/08/2021,0000469467,94.20,Revenue,Main Street Signs Ltd,0
South Ribble Borough Council,http://statistics.data.gov.uk/id/local-authority/30UE,Parking Services,Materials General,4040,2 x WESTERN DRIVE,04/08/2021,0000469467,96.40,Revenue,Main Street Signs Ltd,0
South Ribble Borough Council,http://statistics.data.gov.uk/id/local-authority/30UE,Parking Services,Materials General,4040,1 x ROUND MEADOW,04/08/2021,0000469467,47.10,Revenue,Main Street Signs Ltd,0
South Ribble Borough Council,http://statistics.data.gov.uk/id/local-authority/30UE,Parking Services,Materials General,4040,1 x PATUREFIELD CLOSE,04/08/2021,0000469467,53.70,Revenue,Main Street Signs Ltd,0
South Ribble Borough Council,http://statistics.data.gov.uk/id/local-authority/30UE,Parking Services,Materials General,4040,1 x SCHOOL LANE,04/08/2021,0000469467,46.00,Revenue,Main Street Signs Ltd,0
South Ribble Borough Council,http://statistics.data.gov.uk/id/local-authority/30UE,Parking Services,Materials General,4040,DELIVERY CHARGE,04/08/2021,0000469467,72.00,Revenue,Main Street Signs Ltd,0
South Ribble Borough Council,http://statistics.data.gov.uk/id/local-authority/30UE,Central Support Services,Telecomms- land lines,4269,"Final year of Siemens contract, Renewal - 3rd line support",25/08/2021,0000471009,"11,024.87",Revenue,Maintel Europe Ltd,0
South Ribble Borough Council,http://statistics.data.gov.uk/id/local-authority/30UE,Open Spaces,External Contractors Charges,4570,Supply and apply weed and feed to football pitches and grass areas within South Ribble as per Quotation 1707,25/08/2021,0000471122,"4,086.00",Revenue,Maple Contracting Ltd T/A Complete Weed Control,0
South Ribble Borough Council,http://statistics.data.gov.uk/id/local-authority/30UE,Open Spaces,Materials General,4040,2 sets Football Nets FOT-526 without back supports (16ft x 7ft) @ 480.00,04/08/2021,0000470822,960.00,Revenue,MARK HARROD LIMITED,0
South Ribble Borough Council,http://statistics.data.gov.uk/id/local-authority/30UE,Open Spaces,Materials General,4040,Delivery,04/08/2021,0000470822,155.00,Revenue,MARK HARROD LIMITED,0
South Ribble Borough Council,http://statistics.data.gov.uk/id/local-authority/30UE,Capital,Cap Professional Fees,C210,"Surveyor fees for 12 month maternity cover for DFG cases, 20000",06/08/2021,0000470958,"1,825.00",Revenue,Mathew Butterworth Associates Limited,0
South Ribble Borough Council,http://statistics.data.gov.uk/id/local-authority/30UE,Open Spaces,GM Refurbishment,4657,Transport of 4 loads from Worden Park to Haig Avenue @ 150.00 per load,04/08/2021,0000469944,600.00,Revenue,Michael Alty,0
South Ribble Borough Council,http://statistics.data.gov.uk/id/local-authority/30UE,Open Spaces,GM Refurbishment,4657,"8no loads transported from Worden Park to Haig Avenue Green, Leyland",11/08/2021,0000470906,300.00,Revenue,Michael Alty,0
South Ribble Borough Council,http://statistics.data.gov.uk/id/local-authority/30UE,Open Spaces,GM Refurbishment,4657,"8no loads transported from Worden Park to Haig Avenue Green, Leyland",11/08/2021,0000470908,300.00,Revenue,Michael Alty,0
South Ribble Borough Council,http://statistics.data.gov.uk/id/local-authority/30UE,Recreation & Sport,Miscellaneous Expenses,4851,Delivery of Group exercise in June 2021,04/08/2021,0000470905,720.00,Revenue,Michaela Halley,0
South Ribble Borough Council,http://statistics.data.gov.uk/id/local-authority/30UE,Recreation & Sport,Miscellaneous Expenses,4851,Delivery of classes July 2021,13/08/2021,0000471090,720.00,Revenue,Michaela Halley,0
South Ribble Borough Council,http://statistics.data.gov.uk/id/local-authority/30UE,Recreation & Sport,Reactive Repair & Maintenance,2020,Bamber Bridge leisure Centre Repair to vent as per NAME REDACTED,11/08/2021,0000471010,280.00,Revenue,Mick Bamber,0
South Ribble Borough Council,http://statistics.data.gov.uk/id/local-authority/30UE,Central Support Services,Reactive Repair & Maintenance,2020,"Civic Centre, Power wash gutters off, Apply UPVC primer, base coat with rienforced fibreglass, top coat. As per NAME REDACTED request",18/08/2021,0000471213,"3,700.00",Revenue,Mick Bamber,0
South Ribble Borough Council,http://statistics.data.gov.uk/id/local-authority/30UE,Surplus or Deficit on Trading,Reactive Repair & Maintenance,2020,"Annual Contract for 2021 - 2022 for sweeping the various properties in Worden and Hurst Grange Parks, Gardeners Cottage",13/08/2021,0000471082,60.00,Revenue,Mr Stuart Hardacre T/A Penwortham chimney Sweep,0
South Ribble Borough Council,http://statistics.data.gov.uk/id/local-authority/30UE,Surplus or Deficit on Trading,Reactive Repair & Maintenance,2020,"Annual Contract for 2021- 2022 for sweeping the various properties in Worden and Hurst Grange Parks, 4 Farmyard Cottage, Worden Park",13/08/2021,0000471082,115.00,Revenue,Mr Stuart Hardacre T/A Penwortham chimney Sweep,0
South Ribble Borough Council,http://statistics.data.gov.uk/id/local-authority/30UE,Surplus or Deficit on Trading,Reactive Repair & Maintenance,2020,"Annual Contract for 2021 -  2022 for sweeping the various properties in Worden and Hurst Grange Parks, 3 Farmyard Cottage",13/08/2021,0000471082,60.00,Revenue,Mr Stuart Hardacre T/A Penwortham chimney Sweep,0
South Ribble Borough Council,http://statistics.data.gov.uk/id/local-authority/30UE,Surplus or Deficit on Trading,Reactive Repair & Maintenance,2020,"Annual Contract for 2021 - 2022 for sweeping the various properties in Worden and Hurst Grange Parks, The Bothy, Worden Park",13/08/2021,0000471082,60.00,Revenue,Mr Stuart Hardacre T/A Penwortham chimney Sweep,0
South Ribble Borough Council,http://statistics.data.gov.uk/id/local-authority/30UE,Surplus or Deficit on Trading,Reactive Repair & Maintenance,2020,"Annual Contract, 2021 - 2022, sweep various properties, Worden and Hurst Grange Parks, North Lodge, Worden Park",13/08/2021,0000471082,60.00,Revenue,Mr Stuart Hardacre T/A Penwortham chimney Sweep,0
South Ribble Borough Council,http://statistics.data.gov.uk/id/local-authority/30UE,Central Support Services,External Contractors Charges,4570,"Spec Repair, YD19 ATK, JFC17010 (NAME REDACTED)",06/08/2021,0000471012,476.00,Revenue,Municipal Vehicle Services,0
South Ribble Borough Council,http://statistics.data.gov.uk/id/local-authority/30UE,Central Support Services,External Contractors Charges,4570,"1 x spec repair, YD19AUN, JFC17108",11/08/2021,0000471053,"2,690.00",Revenue,Municipal Vehicle Services,0
South Ribble Borough Council,http://statistics.data.gov.uk/id/local-authority/30UE,Central Support Services,Reactive Repair & Maintenance,2020,"Climate Monitor - Base Units, include internal Humidity, Dew and Temperature sensors, Climate CM2 Annual Support - includes 100 MS Texts",13/08/2021,0000470926,"2,160.16",Revenue,MYPREMIER LTD,0
South Ribble Borough Council,http://statistics.data.gov.uk/id/local-authority/30UE,Central Support Services,External Contractors Charges,4570,"Service Wash 02.07.21, PJ62UCG, JFC17103",06/08/2021,0000471034,65.00,Revenue,NAYLORS TRANSPORT (LEYLAND) ltd,0
South Ribble Borough Council,http://statistics.data.gov.uk/id/local-authority/30UE,Central Support Services,External Contractors Charges,4570,"Service Wash 06.07.21, PO70YOG, JFC16923",06/08/2021,0000471034,65.00,Revenue,NAYLORS TRANSPORT (LEYLAND) ltd,0
South Ribble Borough Council,http://statistics.data.gov.uk/id/local-authority/30UE,Central Support Services,External Contractors Charges,4570,"Service Wash 7.7.21, PO20ZRV, JFC17104",06/08/2021,0000471034,65.00,Revenue,NAYLORS TRANSPORT (LEYLAND) ltd,0
South Ribble Borough Council,http://statistics.data.gov.uk/id/local-authority/30UE,Central Support Services,External Contractors Charges,4570,"Service Wash 13.07.21, PF18JOV, JFC17105",06/08/2021,0000471034,65.00,Revenue,NAYLORS TRANSPORT (LEYLAND) ltd,0
South Ribble Borough Council,http://statistics.data.gov.uk/id/local-authority/30UE,Central Support Services,External Contractors Charges,4570,"Service Wash 14.07.21, PO20ZRY, JFC17003",06/08/2021,0000471034,65.00,Revenue,NAYLORS TRANSPORT (LEYLAND) ltd,0
South Ribble Borough Council,http://statistics.data.gov.uk/id/local-authority/30UE,Central Support Services,External Contractors Charges,4570,"Service Wash 14.07.21, RV14DTZ, JFC17004",06/08/2021,0000471034,65.00,Revenue,NAYLORS TRANSPORT (LEYLAND) ltd,0
South Ribble Borough Council,http://statistics.data.gov.uk/id/local-authority/30UE,Central Support Services,External Contractors Charges,4570,"Service Wash 19.07.21, PO20ZRZ, JFC17043",06/08/2021,0000471034,65.00,Revenue,NAYLORS TRANSPORT (LEYLAND) ltd,0
South Ribble Borough Council,http://statistics.data.gov.uk/id/local-authority/30UE,Central Support Services,Software Licensing,4243,"Capital licence for 200 users - 10,000, Maintenance & Support - 5000.00",18/08/2021,0000470823,"3,333.28",Revenue,NEC Software Solutions UK Ltd,0
South Ribble Borough Council,http://statistics.data.gov.uk/id/local-authority/30UE,Central Support Services,Software Licensing,4243,"Capital licence for 200 users - 10,000, Maintenance & Support - 5000.00",25/08/2021,0000471013,"10,000.00",Revenue,NEC Software Solutions UK Ltd,0
South Ribble Borough Council,http://statistics.data.gov.uk/id/local-authority/30UE,Economic Development,Partnership,485I,Annual website licence and hosting costs for visit Leyland 2020-2021 WCAG 2.1 rules - work to add alt text to product images,18/08/2021,0000469503,"1,890.00",Revenue,NEW MIND INTERNET CONSULTANCY LTD,0
South Ribble Borough Council,http://statistics.data.gov.uk/id/local-authority/30UE,Regulatory Services,Other Fees,4520,"500 X CLEAR PLATE (240 X 176), 250 X MOGO INTERNAL PLATE, A4 TEAR OUT PLATE, 250 X MOGO INTERNAL PLATE WITH HOLOGRAM",11/08/2021,0000467489,"6,589.00",Revenue,NEWAUTO LTD T/A MOGO (UK),0
South Ribble Borough Council,http://statistics.data.gov.uk/id/local-authority/30UE,Recreation & Sport,Other Salary Costs,1140,Tennis Coach Provision - July 2021,13/08/2021,0000471128,254.66,Revenue,Nicholas Pilkington-Lowe,0
South Ribble Borough Council,http://statistics.data.gov.uk/id/local-authority/30UE,Central Support Services,Network and Security,4247,PSN 344 Lot 1 DNS Services - Call Off Charges Year 1 and Year 2 - Community Charge Call Off Contract Period 1 and Period 2,13/08/2021,0000470010,765.94,Revenue,NOMINET UK,0
South Ribble Borough Council,http://statistics.data.gov.uk/id/local-authority/30UE,Capital,Cap Contract Payment,C230,"For the provision of Architectural Services (Stages 1-2) for the delivery of an Extra Care Facility at West Paddock, Leyland",13/08/2021,0000471078,"3,300.00",Revenue,NORR Consultants Limited,0
South Ribble Borough Council,http://statistics.data.gov.uk/id/local-authority/30UE,Democratic Represent and  Mgnt,Members Training,1406,"2 coaching/personal development conversations for NAME REDACTED on 13 April 2021, additional date to be agreed with NAME REDACTED",13/08/2021,0000471139,"1,050.00",Revenue,NORTH WEST EMPLOYERS,0
South Ribble Borough Council,http://statistics.data.gov.uk/id/local-authority/30UE,Central Support Services,Materials General,4040, SCARAB MINI SWEEPER BRUSHES - POLY/WIRE MIX MATHIEU-0120089,04/08/2021,0000469611,772.20,Revenue,NORTHERN MUNICIPAL SPARES LTD,0
South Ribble Borough Council,http://statistics.data.gov.uk/id/local-authority/30UE,Central Support Services,Materials General,4040,CHANNEL BRUSH - 2.8 mm POLY & 3.3mm WIRE 5 row 700/1000mm - MIDI SWEEPER 78399/2,11/08/2021,0000470434,894.00,Revenue,NORTHERN MUNICIPAL SPARES LTD,0
South Ribble Borough Council,http://statistics.data.gov.uk/id/local-authority/30UE,Central Support Services,Materials General,4040,carriage,11/08/2021,0000470434,41.40,Revenue,NORTHERN MUNICIPAL SPARES LTD,0
South Ribble Borough Council,http://statistics.data.gov.uk/id/local-authority/30UE,Recreation & Sport,Electricity,2303,1/6/21 to 30/6/21,04/08/2021,0000470844,"3,323.33",Revenue,NPOWER Business,0
South Ribble Borough Council,http://statistics.data.gov.uk/id/local-authority/30UE,Recreation & Sport,Electricity,2303,,13/08/2021,0000471081,"3,491.18",Revenue,NPOWER Business,0
South Ribble Borough Council,http://statistics.data.gov.uk/id/local-authority/30UE,Parking Services,Parking Attendants,4514,Deployment of Officers- July 2021,11/08/2021,0000471054,"1,601.04",Revenue,NSL LTD,0
South Ribble Borough Council,http://statistics.data.gov.uk/id/local-authority/30UE,Parking Services,Cash Collection Charges Car Parks,4855,Cash collection and Ringo Charges- July 2021,11/08/2021,0000471054,491.22,Revenue,NSL LTD,0
South Ribble Borough Council,http://statistics.data.gov.uk/id/local-authority/30UE,Parking Services,Cash Collection Charges Car Parks,4855,Ringo Convenience Charge- July 2021,11/08/2021,0000471054,312.07,Revenue,NSL LTD,0
South Ribble Borough Council,http://statistics.data.gov.uk/id/local-authority/30UE,Open Spaces,Security Service,4526,Price per contracted itemised collection,11/08/2021,0000471054,41.94,Revenue,NSL LTD,0
South Ribble Borough Council,http://statistics.data.gov.uk/id/local-authority/30UE,Central Support Services,IT Consumables,413A,Out of hours consultancy 1 @ 980.00,13/08/2021,0000470959,980.00,Revenue,NVIRON LTD,0
South Ribble Borough Council,http://statistics.data.gov.uk/id/local-authority/30UE,Central Support Services,Planned Annual Repair & Maintenance,2021,"2021/2022 Annual Inspection, test of the Height Safety System (Fall Arrest System) at the Civic Centre PR25 1DH, contact NAME REDACTED",11/08/2021,0000470904,295.00,Revenue,OMEGA RED GROUP LTD,0
South Ribble Borough Council,http://statistics.data.gov.uk/id/local-authority/30UE,Homelessness,Void Loss,5313,"agreed void loss payment, ADDRESS REDACTED, 09/06/21 - 21/07/21",25/08/2021,0000471343,623.28,Revenue,Onward Homes Ltd,0
South Ribble Borough Council,http://statistics.data.gov.uk/id/local-authority/30UE,Corporate Management,Operational Equip & Tools,4010,"4 x Wohler CO2-Datalogger inc, power supply, datacable, PC software, Delivery Charge 4.95 as per NAME REDACTED",11/08/2021,0000469765,660.00,Revenue,PASS (Portable Appliance Safety Services) Ltd,0
South Ribble Borough Council,http://statistics.data.gov.uk/id/local-authority/30UE,Recreation & Sport,Cleaning,2710,House hold Gloves yellow Medium 3.84 per pack 12 - 5 packs,04/08/2021,0000469915,19.20,Revenue,Pattersons (Bristol) Ltd,0
South Ribble Borough Council,http://statistics.data.gov.uk/id/local-authority/30UE,Recreation & Sport,Cleaning,2710,jangro Mini Jumbo Toilet Roll 200m 2 1/4 core 6.78 each x 12,04/08/2021,0000469915,116.04,Revenue,Pattersons (Bristol) Ltd,0
South Ribble Borough Council,http://statistics.data.gov.uk/id/local-authority/30UE,Recreation & Sport,Cleaning,2710,House hold Gloves Yellow Large 12 in a pack 3.84 each x5,04/08/2021,0000469915,11.52,Revenue,Pattersons (Bristol) Ltd,0
South Ribble Borough Council,http://statistics.data.gov.uk/id/local-authority/30UE,Recreation & Sport,Cleaning,2710,"mopo head exel py mop head 200mg yellow x 10, red x 10, blue x 14",04/08/2021,0000469915,9.00,Revenue,Pattersons (Bristol) Ltd,0
South Ribble Borough Council,http://statistics.data.gov.uk/id/local-authority/30UE,Recreation & Sport,Cleaning,2710,Jango premium supreme 1ltr 1.03 each (5),04/08/2021,0000469915,5.15,Revenue,Pattersons (Bristol) Ltd,0
South Ribble Borough Council,http://statistics.data.gov.uk/id/local-authority/30UE,Recreation & Sport,Cleaning,2710,colour coded dish cloths green 1.16 x 10 (7 packs),04/08/2021,0000469915,8.12,Revenue,Pattersons (Bristol) Ltd,0
South Ribble Borough Council,http://statistics.data.gov.uk/id/local-authority/30UE,Recreation & Sport,Cleaning,2710,jangro centerfeed blue pack 6 7.37 20packs,04/08/2021,0000469915,147.40,Revenue,Pattersons (Bristol) Ltd,0
South Ribble Borough Council,http://statistics.data.gov.uk/id/local-authority/30UE,Recreation & Sport,Cleaning,2710,mop head red,04/08/2021,0000469915,9.00,Revenue,Pattersons (Bristol) Ltd,0
South Ribble Borough Council,http://statistics.data.gov.uk/id/local-authority/30UE,Central Support Services,Clothing and Uniforms,4410,DISPOSABLE GLOVES NITRILE (BOX- 100) LARGE DG150-L,25/08/2021,0000471215,222.00,Revenue,Pattersons (Bristol) Ltd,0
South Ribble Borough Council,http://statistics.data.gov.uk/id/local-authority/30UE,Central Support Services,Materials General,4040, GENERAL PURPOSE DISINFECTANT  5 LTR BC017 - 5,25/08/2021,0000471215,16.56,Revenue,Pattersons (Bristol) Ltd,0
South Ribble Borough Council,http://statistics.data.gov.uk/id/local-authority/30UE,Central Support Services,Materials General,4040,LEMON FLOOR GEL BD041 -5,25/08/2021,0000471215,26.40,Revenue,Pattersons (Bristol) Ltd,0
South Ribble Borough Council,http://statistics.data.gov.uk/id/local-authority/30UE,Central Support Services,Consumable Clng Materials,2711,"AA201	JANGRO MICRO MINI TOILET ROLL 100M X 90MM (24) 10 @ 10.59",25/08/2021,0000471347,105.90,Revenue,Pattersons (Bristol) Ltd,0
South Ribble Borough Council,http://statistics.data.gov.uk/id/local-authority/30UE,Central Support Services,Consumable Clng Materials,2711,BK803-5 JANGRO PINK PEARLISED HAND SOAP 5L 4 @ 5.00,25/08/2021,0000471347,20.00,Revenue,Pattersons (Bristol) Ltd,0
South Ribble Borough Council,http://statistics.data.gov.uk/id/local-authority/30UE,Central Support Services,Consumable Clng Materials,2711,DG154-M JANGRO LATEX DISP. GLOVES POWDER FREE NATURAL MEDIUM (100) 10 @ 2.87,25/08/2021,0000471347,7.19,Revenue,Pattersons (Bristol) Ltd,0
South Ribble Borough Council,http://statistics.data.gov.uk/id/local-authority/30UE,Central Support Services,Consumable Clng Materials,2711,"DG150-L JANGRO PROFESSIONAL NITRILE DISPOSABLE GLOVE POWDER FREE BLUE LARGE x 100, 10 @ 3.52",25/08/2021,0000471347,100.00,Revenue,Pattersons (Bristol) Ltd,0
South Ribble Borough Council,http://statistics.data.gov.uk/id/local-authority/30UE,Central Support Services,Consumable Clng Materials,2711,"BD041-5 Jangro Lemon Floor Gel 5ltr, 2 @ 6.00",25/08/2021,0000471347,8.28,Revenue,Pattersons (Bristol) Ltd,0
South Ribble Borough Council,http://statistics.data.gov.uk/id/local-authority/30UE,Central Support Services,Consumable Clng Materials,2711,"BA048-5 JANGRO CLEANER DISINFECTANT 5LTR, 6 @ 9.00",25/08/2021,0000471347,54.00,Revenue,Pattersons (Bristol) Ltd,0
South Ribble Borough Council,http://statistics.data.gov.uk/id/local-authority/30UE,Central Support Services,Consumable Clng Materials,2711,"BD075-5 Jangro Safety Floor Cleaner 5 Ltr, 4 @ 8.00",25/08/2021,0000471347,13.92,Revenue,Pattersons (Bristol) Ltd,0
South Ribble Borough Council,http://statistics.data.gov.uk/id/local-authority/30UE,Surplus or Deficit on Trading,Reactive Repair & Maintenance,2020,Please undertake works to remove lights from Worden Arts Centre as per your quotation ref QU-0382,04/08/2021,0000470757,740.00,Revenue,PDP PROPERTY SERVICES LTD,0
South Ribble Borough Council,http://statistics.data.gov.uk/id/local-authority/30UE,Surplus or Deficit on Trading,Reactive Repair & Maintenance,2020,"North Lodge, worden park. QU-0397 Supply and fit new lamona fan assisted oven for north, lodge worden park Leyland as per NAME REDACTED",18/08/2021,0000471065,290.00,Revenue,PDP PROPERTY SERVICES LTD,0
South Ribble Borough Council,http://statistics.data.gov.uk/id/local-authority/30UE,Community Development,Professional Fees,4510,"Holiday activities, 60 children per day for 8 days at 14 each as per discussed and agreed",18/08/2021,0000471217,"6,720.00",Revenue,Penwortham Boxing Club CIC,0
South Ribble Borough Council,http://statistics.data.gov.uk/id/local-authority/30UE,Local Land Charges,Refunded Income,485R,refund monies for overpayment,25/08/2021,0000471321,"1,184.40",Revenue,PHOENIX SEARCHES LTD,0
South Ribble Borough Council,http://statistics.data.gov.uk/id/local-authority/30UE,Central Support Services,Legal,4821,PROFESSIONAL SERVICES REGARDING CHANGE OF USE - LAND TO THE EAST OF ADDRESS REDACTED,04/08/2021,0000470901,750.00,Revenue,PIERS RILEY-SMITH,0
South Ribble Borough Council,http://statistics.data.gov.uk/id/local-authority/30UE,Central Support Services,Materials General,4040,1200 Ltrs Hydraulic 46 at 1.20 Per Litre,18/08/2021,0000471218,"1,224.00",Revenue,PILKINGTON OILS,0
South Ribble Borough Council,http://statistics.data.gov.uk/id/local-authority/30UE,Central Support Services,Materials General,4040,1200 Ltrs Hydraulic 32 @ 1.15 Per Litre,25/08/2021,0000471219,"1,384.60",Revenue,PILKINGTON OILS,0
South Ribble Borough Council,http://statistics.data.gov.uk/id/local-authority/30UE,Economic Development,Economic Regeneration,485A,"Place dashboard licence renewal for period (5% discount rate) 1st February 2021  31st January 2022, @ 7,980+VAT",25/08/2021,0000471138,"7,980.00",Revenue,Place Informatics Ltd,0
South Ribble Borough Council,http://statistics.data.gov.uk/id/local-authority/30UE,Central Support Services,Agency Staff,1121,Planning Enforcement consultancy services,11/08/2021,0000470944,"1,102.00",Revenue,Planning Control & PACE Solutions,0
South Ribble Borough Council,http://statistics.data.gov.uk/id/local-authority/30UE,Central Support Services,Agency Staff,1121,Planning Enforcement consultancy services,11/08/2021,0000470981,"1,197.00",Revenue,Planning Control & PACE Solutions,0
South Ribble Borough Council,http://statistics.data.gov.uk/id/local-authority/30UE,Central Support Services,Agency Staff,1121,post,11/08/2021,0000470981,15.60,Revenue,Planning Control & PACE Solutions,0
South Ribble Borough Council,http://statistics.data.gov.uk/id/local-authority/30UE,Development Control,Operational Equip & Tools,4010,Annual subscription - Planning Jungle website,06/08/2021,0000470946,300.00,Revenue,PLANNING JUNGLE LIMITED,0
South Ribble Borough Council,http://statistics.data.gov.uk/id/local-authority/30UE,Open Spaces,GM Refurbishment,4657,1 x city seesaw spring assembly and fixings as per quotation 0000070576,18/08/2021,0000471015,"2,068.29",Revenue,PLAYDALE PLAYGROUNDS LTD,0
South Ribble Borough Council,http://statistics.data.gov.uk/id/local-authority/30UE,Recreation & Sport,Publicity & Promotion,4842,BATCH OF 8 LEISURE APP PULL UP BANNERS AS QUOTATION REFERENCE: 15619/1,13/08/2021,0000470103,472.00,Revenue,Poppy Signs Ltd,0
South Ribble Borough Council,http://statistics.data.gov.uk/id/local-authority/30UE,Central Support Services,Paper Bulk,4133,"40,000 sheets Evolution Everyday 80gm A4, 15000 sheets Evolution Business 90gm A4, 1000 sheets A4 Pink Card 160gm",18/08/2021,0000470900,350.47,Revenue,PREMIER PAPER GROUP LTD,0
South Ribble Borough Council,http://statistics.data.gov.uk/id/local-authority/30UE,Culture & Heritage,Operational Equip & Tools,4010,"Plastazote LD45 - 1500mm x 1000mm x 12mm - Grey 4 sheets, Buffered Acid-Free Tissue Paper - 762 x 1016mm, buffered tissue paper Sheets",25/08/2021,0000471149,499.60,Revenue,Preservation Equipment Ltd,0
South Ribble Borough Council,http://statistics.data.gov.uk/id/local-authority/30UE,Central Support Services,Materials General,4040,Various Tyres TR234,18/08/2021,0000470899,627.25,Revenue,PRESTON TYRE SPECIALISTS,0
South Ribble Borough Council,http://statistics.data.gov.uk/id/local-authority/30UE,Central Support Services,Reactive Repair & Maintenance,2020,"REF: REMEDIAL WORKS TO CIVIC CENTRE NEW RESTRICTORS OUR REF LRS Q 4093, 21 ST JUNE 2021 as per NAME REDACTED",11/08/2021,0000470987,"2,500.00",Revenue,PSR & Sons Joiners & Building Contractors,0
South Ribble Borough Council,http://statistics.data.gov.uk/id/local-authority/30UE,Central Support Services,Reactive Repair & Maintenance,2020,labour,11/08/2021,0000470987,470.00,Revenue,PSR & Sons Joiners & Building Contractors,0
South Ribble Borough Council,http://statistics.data.gov.uk/id/local-authority/30UE,Central Support Services,Reactive Repair & Maintenance,2020,Supply and install Stainless Steel Disc Fire Door signs to Both sides of 25 no singles and 6 no double Doors.,11/08/2021,0000470989,100.00,Revenue,PSR & Sons Joiners & Building Contractors,0
South Ribble Borough Council,http://statistics.data.gov.uk/id/local-authority/30UE,Central Support Services,Reactive Repair & Maintenance,2020,To Supply and install Stainless Steel Disc Fire Door signs to Both sides of  16 no singles and 2 no double Doors.,11/08/2021,0000470989,400.00,Revenue,PSR & Sons Joiners & Building Contractors,0
South Ribble Borough Council,http://statistics.data.gov.uk/id/local-authority/30UE,Surplus or Deficit on Trading,Reactive Repair & Maintenance,2020,"Take down all Brickwork, timber works and Roof areas and remove from site. Re-point wall areas were flashing will be Removed.",11/08/2021,0000471029,900.00,Revenue,PSR & Sons Joiners & Building Contractors,0
South Ribble Borough Council,http://statistics.data.gov.uk/id/local-authority/30UE,Surplus or Deficit on Trading,Reactive Repair & Maintenance,2020,labour,11/08/2021,0000471029,40.00,Revenue,PSR & Sons Joiners & Building Contractors,0
South Ribble Borough Council,http://statistics.data.gov.uk/id/local-authority/30UE,Surplus or Deficit on Trading,Reactive Repair & Maintenance,2020,Please undertake works to the doors & frames at ADDRESS REDACTED as detailed in your quotation ref Q3964,18/08/2021,0000471170,"2,100.00",Revenue,PSR & Sons Joiners & Building Contractors,0
South Ribble Borough Council,http://statistics.data.gov.uk/id/local-authority/30UE,Surplus or Deficit on Trading,Reactive Repair & Maintenance,2020,labour,18/08/2021,0000471170,240.00,Revenue,PSR & Sons Joiners & Building Contractors,0
South Ribble Borough Council,http://statistics.data.gov.uk/id/local-authority/30UE,Central Support Services,Reactive Repair & Maintenance,2020,"Manufacture and install new Cupboard approx. 1200 mm wide x 1200 mm high, New Unit to be Complete with Shelving and Timber Supports",18/08/2021,0000471171,600.00,Revenue,PSR & Sons Joiners & Building Contractors,0
South Ribble Borough Council,http://statistics.data.gov.uk/id/local-authority/30UE,Central Support Services,Reactive Repair & Maintenance,2020,LABOUR,18/08/2021,0000471171,50.00,Revenue,PSR & Sons Joiners & Building Contractors,0
South Ribble Borough Council,http://statistics.data.gov.uk/id/local-authority/30UE,Surplus or Deficit on Trading,Reactive Repair & Maintenance,2020,"Board over Windows as Required, Supply and Install New Double Glazed units, Safety and Toughened Glass, ADDRESS REDACTED",18/08/2021,0000471172,350.00,Revenue,PSR & Sons Joiners & Building Contractors,0
South Ribble Borough Council,http://statistics.data.gov.uk/id/local-authority/30UE,Surplus or Deficit on Trading,Reactive Repair & Maintenance,2020,LABOUR,18/08/2021,0000471172,80.00,Revenue,PSR & Sons Joiners & Building Contractors,0
South Ribble Borough Council,http://statistics.data.gov.uk/id/local-authority/30UE,Recreation & Sport,Reactive Repair & Maintenance,2020,"Damaged test clamp must be replaced, earth resistance test carried out. Replace damaged inspection chamber lid",18/08/2021,0000470896,559.63,Revenue,PTSG Electrical Services Ltd,0
South Ribble Borough Council,http://statistics.data.gov.uk/id/local-authority/30UE,Recreation & Sport,Maintenance & Repair,4013,Water treatment works at SRTC,25/08/2021,0000471314,335.00,Revenue,Quality Environmental Services Limited,0
South Ribble Borough Council,http://statistics.data.gov.uk/id/local-authority/30UE,Recreation & Sport,Maintenance & Repair,4013,water treatment and inhibitor dosing,25/08/2021,0000471319,855.00,Revenue,Quality Environmental Services Limited,0
South Ribble Borough Council,http://statistics.data.gov.uk/id/local-authority/30UE,Recreation & Sport,Planned Annual Repair & Maintenance,2021,"Penwortham Leisure Centre, Inhibitor Dosing, Water  treatment  works, I have pleasure in submitting to you our costs to complete works",25/08/2021,0000471371,520.00,Revenue,Quality Environmental Services Limited,0
South Ribble Borough Council,http://statistics.data.gov.uk/id/local-authority/30UE,Central Support Services,External Contractors Charges,4570,System rental and Communications Charge - 60 vehicles for 3 months from 1.7.21 - 30.9.21,04/08/2021,0000469718,"2,070.00",Revenue,Quartix,0
South Ribble Borough Council,http://statistics.data.gov.uk/id/local-authority/30UE,Capital,Cap Contract Payment,C230,"Alteration, Adaption, Extension and Refurbishment Works - Hurst Grange Coach House, Penwortham",04/08/2021,0000470436,"70,176.29",Revenue,R Developments Ltd T/A Rosslee Construction Ltd,0
South Ribble Borough Council,http://statistics.data.gov.uk/id/local-authority/30UE,Capital,Cap Contract Payment,C230,Bat emergence/re-entry surveys at Derby Wing. As per NAME REDACTED request for Worden Hall Refurbishment,04/08/2021,0000470895,"2,250.00",Revenue,Rachel Hacking Ecology,0
South Ribble Borough Council,http://statistics.data.gov.uk/id/local-authority/30UE,Open Spaces,Hiring Expenses,3212,"8T Excavator & Shutters @ 350.00 per week, Collection//Delivery 50.00 each way",04/08/2021,0000470063,560.00,Revenue,Readyplant Limited,0
South Ribble Borough Council,http://statistics.data.gov.uk/id/local-authority/30UE,Open Spaces,Hiring Expenses,3212,"6T Dumper @ 130.00 per week, Collection/Delivery 50.00 each way",04/08/2021,0000470063,208.00,Revenue,Readyplant Limited,0
South Ribble Borough Council,http://statistics.data.gov.uk/id/local-authority/30UE,Open Spaces,Hiring Expenses,3212,FUEL,04/08/2021,0000470063,67.50,Revenue,Readyplant Limited,0
South Ribble Borough Council,http://statistics.data.gov.uk/id/local-authority/30UE,Open Spaces,Hiring Expenses,3212,Collection,04/08/2021,0000470063,100.00,Revenue,Readyplant Limited,0
South Ribble Borough Council,http://statistics.data.gov.uk/id/local-authority/30UE,Open Spaces,Hiring Expenses,3212,Hire of 1 x 8T excavator and shutters at 350.00 per week for 3 weeks from Monday 26th July 2021,18/08/2021,0000471046,350.00,Revenue,Readyplant Limited,0
South Ribble Borough Council,http://statistics.data.gov.uk/id/local-authority/30UE,Open Spaces,Hiring Expenses,3212,Hire of 1 x 6T dumper at 130.00 per week for 3 weeks from Monday 26th July 2021,18/08/2021,0000471046,130.00,Revenue,Readyplant Limited,0
South Ribble Borough Council,http://statistics.data.gov.uk/id/local-authority/30UE,Open Spaces,Hiring Expenses,3212,"Collection/Delivery at 50 each way to Haig Avenue, Leyland",18/08/2021,0000471046,50.00,Revenue,Readyplant Limited,0
South Ribble Borough Council,http://statistics.data.gov.uk/id/local-authority/30UE,Central Support Services,Materials General,4040,4 x Step Bolts 5044499- BING036,18/08/2021,0000470116,7.56,Revenue,Refuse Vehicle Parts,0
South Ribble Borough Council,http://statistics.data.gov.uk/id/local-authority/30UE,Central Support Services,Materials General,4040,4 x Latch's 1005152- BING009,18/08/2021,0000470116,79.52,Revenue,Refuse Vehicle Parts,0
South Ribble Borough Council,http://statistics.data.gov.uk/id/local-authority/30UE,Central Support Services,Materials General,4040,2 x proxy switches 979944- BING008,18/08/2021,0000470116,99.86,Revenue,Refuse Vehicle Parts,0
South Ribble Borough Council,http://statistics.data.gov.uk/id/local-authority/30UE,Central Support Services,Materials General,4040,1 x buffer 401543- BING006,18/08/2021,0000470116,8.25,Revenue,Refuse Vehicle Parts,0
South Ribble Borough Council,http://statistics.data.gov.uk/id/local-authority/30UE,Central Support Services,Materials General,4040,1 x Bin lift ram 1000829- G026,18/08/2021,0000470116,747.19,Revenue,Refuse Vehicle Parts,0
South Ribble Borough Council,http://statistics.data.gov.uk/id/local-authority/30UE,Central Support Services,Materials General,4040,2 x GPM4 filter kit 5025256-1 -BIN G027,18/08/2021,0000470116,432.59,Revenue,Refuse Vehicle Parts,0
South Ribble Borough Council,http://statistics.data.gov.uk/id/local-authority/30UE,Central Support Services,Materials General,4040,Carriage,18/08/2021,0000470116,20.00,Revenue,Refuse Vehicle Parts,0
South Ribble Borough Council,http://statistics.data.gov.uk/id/local-authority/30UE,Central Support Services,Materials General,4040,6 x pins - BIN G077,18/08/2021,0000470116,138.51,Revenue,Refuse Vehicle Parts,0
South Ribble Borough Council,http://statistics.data.gov.uk/id/local-authority/30UE,Central Support Services,Materials General,4040,6 x Bushes - BIN G050,18/08/2021,0000470116,21.38,Revenue,Refuse Vehicle Parts,0
South Ribble Borough Council,http://statistics.data.gov.uk/id/local-authority/30UE,Central Support Services,Materials General,4040,"Parts Supplied to vehicle, YD19AUN, JFC17108",11/08/2021,0000471051,"2,670.58",Revenue,Refuse Vehicle Parts,0
South Ribble Borough Council,http://statistics.data.gov.uk/id/local-authority/30UE,Recreation & Sport,Planned Annual Repair & Maintenance,2021,"2021 /22 annual contract, 2 visits per year, Caterclean package at South Ribble Tennis Centre, initial clean as detailed in the survey report",18/08/2021,0000471136,"1,360.00",Revenue,Rentokil Intitial UK Ltd,0
South Ribble Borough Council,http://statistics.data.gov.uk/id/local-authority/30UE,Corporate Management,Other Fees,4520,2020/21 admin fee for the Lancashire Business Rates Pool,13/08/2021,0000471161,"1,818.18",Revenue,Ribble Valley Borough Council,0
South Ribble Borough Council,http://statistics.data.gov.uk/id/local-authority/30UE,Central Support Services,Materials General,4040,2 x batteries VX18 KLC JFC17089,06/08/2021,0000470934,270.00,Revenue,RIBBLESDALE AUTO ELECTRICS 1992 LTD,0
South Ribble Borough Council,http://statistics.data.gov.uk/id/local-authority/30UE,Waste Collection,Consultancy Fees,4541,Consultancy Services- review of options for the waste collection contract. Quote Reference: ED14989,04/08/2021,0000469613,"6,565.00",Revenue,RICARDO-AEA LIMITED,0
South Ribble Borough Council,http://statistics.data.gov.uk/id/local-authority/30UE,Central Support Services,Business Reply Services,4295,14 july 2021,25/08/2021,0000470428,341.67,Revenue,ROYAL MAIL GROUP PLC,0
South Ribble Borough Council,http://statistics.data.gov.uk/id/local-authority/30UE,Short Term Debtors,Amount Paid,0030,Professional fees for works in relation to Leyland test track,13/08/2021,0000471040,"1,699.97",Revenue,Sanderson Weatherall LLP,0
South Ribble Borough Council,http://statistics.data.gov.uk/id/local-authority/30UE,Short Term Debtors,Amount Paid,0030,non vat,13/08/2021,0000471040,27.00,Revenue,Sanderson Weatherall LLP,0
South Ribble Borough Council,http://statistics.data.gov.uk/id/local-authority/30UE,Central Support Services,External Contractors Charges,4570,"1 x spec repair, GL70SVY, JFC16593",04/08/2021,0000469928,940.11,Revenue,Scarab Sweepers Ltd,0
South Ribble Borough Council,http://statistics.data.gov.uk/id/local-authority/30UE,Recreation & Sport,Gas,2304,5/3 to 28/5/21,04/08/2021,0000470843,543.61,Revenue,SCOTTISH HYDRO ELECTRIC,0
South Ribble Borough Council,http://statistics.data.gov.uk/id/local-authority/30UE,Development Control,Operational Equip & Tools,4010,"Lease Rental 14 Aug 2021 - 13 Nov 2021, HP XL-3600 Wide Format Printer, 95L1H039",06/08/2021,0000470942,"1,015.29",Revenue,Siemens Financial Services Limited,0
South Ribble Borough Council,http://statistics.data.gov.uk/id/local-authority/30UE,Corporate Management,Publicity & Promotion,4842,Banners per NAME REDACTED,04/08/2021,0000470061,309.60,Revenue,SIGNCRAFT,0
South Ribble Borough Council,http://statistics.data.gov.uk/id/local-authority/30UE,Capital,Cap Contract Payment,C230,"Supply and installation of fencing, Worden Park Arboretum Pond Leyland",11/08/2021,0000470891,"3,503.00",Revenue,Singleton Landwork Ltd,0
South Ribble Borough Council,http://statistics.data.gov.uk/id/local-authority/30UE,Suspended Items,Room Hire and Events,4630,"18 x T Shirt - Various Sizes, 8 x Waterproof Coat - Various Sizes, For Casual staff on HAF Programme",11/08/2021,0000470475,457.20,Revenue,SMART IMAGE WORKWEAR,0
South Ribble Borough Council,http://statistics.data.gov.uk/id/local-authority/30UE,Development Control,Miscellaneous Expenses,4851,"Section 215 notice - ADDRESS REDACTED. Clear rear garden, remove shed, remove ivy. Any additional work can be priced after the clearance",04/08/2021,0000470094,"1,490.00",Revenue,SMJ CONTRACT CLEANING,0
South Ribble Borough Council,http://statistics.data.gov.uk/id/local-authority/30UE,Short Term Creditors,Amount Paid,0030,deds from payroll,11/08/2021,0000470953,"1,444.14",Revenue,SOUTH RIBBLE LABOUR PARTY LOCAL GOVERNM,0
South Ribble Borough Council,http://statistics.data.gov.uk/id/local-authority/30UE,Central Support Services,Materials General,4040,Cylinder Roller Bin1268,11/08/2021,0000470935,224.37,Revenue,SPALDINGS,0
South Ribble Borough Council,http://statistics.data.gov.uk/id/local-authority/30UE,Central Support Services,Materials General,4040,Scraper Wire Bin1060,11/08/2021,0000470935,51.00,Revenue,SPALDINGS,0
South Ribble Borough Council,http://statistics.data.gov.uk/id/local-authority/30UE,Short Term Creditors,Amount Paid,0030,deds from payroll,11/08/2021,0000470949,412.30,Revenue,ST CATHERINES HOSPICE PROMOTIONS LTD,0
South Ribble Borough Council,http://statistics.data.gov.uk/id/local-authority/30UE,Recreation & Sport,Miscellaneous Expenses,4851,Delivery of Zumba in June 2021,04/08/2021,0000470887,620.00,Revenue,Stamatiki Stratakou,0
South Ribble Borough Council,http://statistics.data.gov.uk/id/local-authority/30UE,Recreation & Sport,Miscellaneous Expenses,4851,Delivery of Zumba Classes in July 2021,06/08/2021,0000471023,620.00,Revenue,Stamatiki Stratakou,0
South Ribble Borough Council,http://statistics.data.gov.uk/id/local-authority/30UE,Service Management & Support,Gas Oil,3134,2000 litres of gas oil at 58.14 ppl into tank 2,04/08/2021,0000470825,"1,162.80",Revenue,Standard Fuel Oils LtdMain,0
South Ribble Borough Council,http://statistics.data.gov.uk/id/local-authority/30UE,Service Management & Support,Diesel Fuel,3132,"17000 litres diesel @ 102.41ppl into the feeder tank at Unit 81 Bison Place, Moss Side",04/08/2021,0000470834,"17,403.56",Revenue,Standard Fuel Oils LtdMain,0
South Ribble Borough Council,http://statistics.data.gov.uk/id/local-authority/30UE,Service Management & Support,Gas Oil,3134,2500 litres gas oil at 58.24ppl into tank 2,18/08/2021,0000471156,"1,455.42",Revenue,Standard Fuel Oils LtdMain,0
South Ribble Borough Council,http://statistics.data.gov.uk/id/local-authority/30UE,Service Management & Support,Diesel Fuel,3132,"17000 litres diesel @ 103.47ppl into the feeder tank at Unit 81 Bison Place, Moss Side",18/08/2021,0000471164,"17,517.21",Revenue,Standard Fuel Oils LtdMain,0
South Ribble Borough Council,http://statistics.data.gov.uk/id/local-authority/30UE,Capital,Capital Grant,C570,DFG WORK TO SUPPLY AND INSTALL A STAIRLIFT  AT ADDRESS REDACTED AS PER QUOTE SUPPLIED OF 4430.00,04/08/2021,0000470886,"4,430.00",Revenue,Stannah Lift Services Ltd,0
South Ribble Borough Council,http://statistics.data.gov.uk/id/local-authority/30UE,Capital,Cap Contract Payment,C230,Please undertake additional woodland management to accommodate the new Leyland bridleway as agreed with SRBC regeneration dept.,25/08/2021,0000471193,"1,550.00",Revenue,Stephen Pye Tree Services,0
South Ribble Borough Council,http://statistics.data.gov.uk/id/local-authority/30UE,Open Spaces,GM Refurbishment,4657,x5 Kaiser and Kuhne pendulum seats and chains as per quotation Ref. CG070421.,25/08/2021,0000469639,"4,032.48",Revenue,SUTCLIFFE PLAY LTD,0
South Ribble Borough Council,http://statistics.data.gov.uk/id/local-authority/30UE,Recreation & Sport,Materials General,4040,Learn to swim stage 1 cert and badge x20@2.06,25/08/2021,0000471169,41.20,Revenue,Swim England Trading Limited,0
South Ribble Borough Council,http://statistics.data.gov.uk/id/local-authority/30UE,Recreation & Sport,Materials General,4040,Learn to swim stage 2 cert and badge x20@2.06,25/08/2021,0000471169,41.20,Revenue,Swim England Trading Limited,0
South Ribble Borough Council,http://statistics.data.gov.uk/id/local-authority/30UE,Recreation & Sport,Materials General,4040,Learn to swim stage 3 cert and badge x20@2.06,25/08/2021,0000471169,41.20,Revenue,Swim England Trading Limited,0
South Ribble Borough Council,http://statistics.data.gov.uk/id/local-authority/30UE,Recreation & Sport,Materials General,4040,Learn to swim stage 4 cert and badge x40@2.06,25/08/2021,0000471169,82.40,Revenue,Swim England Trading Limited,0
South Ribble Borough Council,http://statistics.data.gov.uk/id/local-authority/30UE,Recreation & Sport,Materials General,4040,Learn to swim stage 4 cert and badge x25@2.06,25/08/2021,0000471169,51.50,Revenue,Swim England Trading Limited,0
South Ribble Borough Council,http://statistics.data.gov.uk/id/local-authority/30UE,Recreation & Sport,Materials General,4040,Rainbow 5m award x40@2.06each,25/08/2021,0000471169,82.40,Revenue,Swim England Trading Limited,0
South Ribble Borough Council,http://statistics.data.gov.uk/id/local-authority/30UE,Recreation & Sport,Materials General,4040,Rainbow 10m x40@2.06,25/08/2021,0000471169,82.40,Revenue,Swim England Trading Limited,0
South Ribble Borough Council,http://statistics.data.gov.uk/id/local-authority/30UE,Recreation & Sport,Materials General,4040,Rainbow 50m x25@2.06,25/08/2021,0000471169,51.50,Revenue,Swim England Trading Limited,0
South Ribble Borough Council,http://statistics.data.gov.uk/id/local-authority/30UE,Recreation & Sport,Materials General,4040,carriage,25/08/2021,0000471169,8.00,Revenue,Swim England Trading Limited,0
South Ribble Borough Council,http://statistics.data.gov.uk/id/local-authority/30UE,Central Support Services,Materials General,4040,"1 x 4 way splitter box, PJ62UCM, JFC17057",04/08/2021,0000470883,105.58,Revenue,Taylor Enginering & Fabrications Ltd,0
South Ribble Borough Council,http://statistics.data.gov.uk/id/local-authority/30UE,Central Support Services,Materials General,4040,"1 x sensor, VO65KPZ, JFC16969",04/08/2021,0000470883,295.57,Revenue,Taylor Enginering & Fabrications Ltd,0
South Ribble Borough Council,http://statistics.data.gov.uk/id/local-authority/30UE,Central Support Services,Materials General,4040,Carriage,04/08/2021,0000470883,8.95,Revenue,Taylor Enginering & Fabrications Ltd,0
South Ribble Borough Council,http://statistics.data.gov.uk/id/local-authority/30UE,Central Support Services,Materials General,4040,"RPD sensor, VO65 KPZ, JFC17133 (NAME REDACTED)",18/08/2021,0000471166,295.57,Revenue,Taylor Enginering & Fabrications Ltd,0
South Ribble Borough Council,http://statistics.data.gov.uk/id/local-authority/30UE,Central Support Services,Materials General,4040,carriage,18/08/2021,0000471166,8.95,Revenue,Taylor Enginering & Fabrications Ltd,0
South Ribble Borough Council,http://statistics.data.gov.uk/id/local-authority/30UE,Central Support Services,External Contractors Charges,4570,Calibration of Roller Brake Tester on 28.7.21,11/08/2021,0000471022,399.00,Revenue,Tecalemit Garage Equipment Company Limited,0
South Ribble Borough Council,http://statistics.data.gov.uk/id/local-authority/30UE,Central Support Services,Agency Staff,1121,"For Agency Staff, NAME REDACTED to work a total of 89 days within the 25,000 budget. Start date of April 26th, until  August 31st 2021",11/08/2021,0000470980,"1,400.00",Revenue,The Oyster Partnership,0
South Ribble Borough Council,http://statistics.data.gov.uk/id/local-authority/30UE,Central Support Services,Agency Staff,1121,"For Agency Staff, NAME REDACTED to work a total of 89 days within the 25,000 budget. Start date of April 26th, until  August 31st 2021",18/08/2021,0000471137,"1,400.00",Revenue,The Oyster Partnership,0
South Ribble Borough Council,http://statistics.data.gov.uk/id/local-authority/30UE,Central Support Services,Agency Staff,1121,"For Agency Staff, NAME REDACTED to work a total of 89 days within the 25,000 budget. Start date of April 26th, until  August 31st 2021",18/08/2021,0000471185,"1,400.00",Revenue,The Oyster Partnership,0
South Ribble Borough Council,http://statistics.data.gov.uk/id/local-authority/30UE,Central Support Services,Agency Staff,1121,"For Agency Staff, NAME REDACTED to work a total of 89 days within the 25,000 budget. Start date of April 26th, until  August 31st 2021",25/08/2021,0000471356,"1,400.00",Revenue,The Oyster Partnership,0
South Ribble Borough Council,http://statistics.data.gov.uk/id/local-authority/30UE,Economic Development,Gas,2304,30/4 to 31/7/21,25/08/2021,0000470975,576.58,Revenue,Total Gas & power Ltd,0
South Ribble Borough Council,http://statistics.data.gov.uk/id/local-authority/30UE,Open Spaces,Electricity,2303,1/7 to 31/7/21,13/08/2021,0000471036,388.67,Revenue,Total Gas & power Ltd,0
South Ribble Borough Council,http://statistics.data.gov.uk/id/local-authority/30UE,Central Support Services,Gas,2304,28/6 to 31/7/21,13/08/2021,0000471056,548.62,Revenue,Total Gas & power Ltd,0
South Ribble Borough Council,http://statistics.data.gov.uk/id/local-authority/30UE,Culture & Heritage,Gas,2304,30/4 to 31/7/21,13/08/2021,0000471175,448.95,Revenue,Total Gas & power Ltd,0
South Ribble Borough Council,http://statistics.data.gov.uk/id/local-authority/30UE,Open Spaces,Gas,2304,30/4 to 31/7/21,13/08/2021,0000471176,363.60,Revenue,Total Gas & power Ltd,0
South Ribble Borough Council,http://statistics.data.gov.uk/id/local-authority/30UE,Economic Development,Professional Fees,4510,Cost for the preparation of a Master Plan for the Wider Vernon Carus Site,18/08/2021,0000471103,"5,000.00",Revenue,Trebbi Continuum Limited,0
South Ribble Borough Council,http://statistics.data.gov.uk/id/local-authority/30UE,Open Spaces,Operational Equip & Tools,4010,"STIHL FS 94 RC-E Brushcutter, Plastic Loop Handle Style",25/08/2021,0000471325,698.64,Revenue,Tudor (UK) Ltd t/a Tudor Environmental,0
South Ribble Borough Council,http://statistics.data.gov.uk/id/local-authority/30UE,Central Support Services,UK Healthcare,1710,01 april 2021,04/08/2021,0000468654,"1,311.00",Revenue,UK healthcare (BDHSC),0
South Ribble Borough Council,http://statistics.data.gov.uk/id/local-authority/30UE,Central Support Services,UK Healthcare,1710,01 may 2021,04/08/2021,0000468655,"1,320.20",Revenue,UK healthcare (BDHSC),0
South Ribble Borough Council,http://statistics.data.gov.uk/id/local-authority/30UE,Central Support Services,UK Healthcare,1710,1 aug 2021,18/08/2021,0000470929,"1,528.74",Revenue,UK healthcare (BDHSC),0
South Ribble Borough Council,http://statistics.data.gov.uk/id/local-authority/30UE,Economic Development,Professional Fees,4510,PAT SHARP TO PERFORM AT MUSIC IN THE PARK 2022,13/08/2021,0000469850,"2,000.00",Revenue,UK Media Events Ltd,0
South Ribble Borough Council,http://statistics.data.gov.uk/id/local-authority/30UE,Democratic Represent and  Mgnt,Rental,4012,2021 / 2022 annual contract for the monthly rental of hot drinks machines at the civic centre including environmental charge.,04/08/2021,0000470880,291.98,Revenue,VENDING ENTERPRISES,0
South Ribble Borough Council,http://statistics.data.gov.uk/id/local-authority/30UE,Surplus or Deficit on Trading,Water Charges(Metered),2511,31/3/21 to 31/3/22,25/08/2021,0000471252,"16,217.56",Revenue,WATER PLUS,0
South Ribble Borough Council,http://statistics.data.gov.uk/id/local-authority/30UE,Community Development,Contributions to Other Bodies,4730,"5000 carrier bags as agreed including delivery, for Holiday Hunger project",13/08/2021,0000471109,575.00,Revenue,Weldbank Plastic Company Limited,0
South Ribble Borough Council,http://statistics.data.gov.uk/id/local-authority/30UE,Community Development,Contributions to Other Bodies,4730,"5000 carrier bags for the Holiday Hunger project, obg plain white carrier bags at 115 per 1000 bags for delivery on Wednesday 11th August",18/08/2021,0000471180,575.00,Revenue,Weldbank Plastic Company Limited,0
South Ribble Borough Council,http://statistics.data.gov.uk/id/local-authority/30UE,Recreation & Sport,Planned Annual Repair & Maintenance,2021,"Hire of 1 x anti vandal toilet unit, 1 x 500 gallon effluent tank, 1 x anti vandal canteen unit to be located at Penwortham Holme",25/08/2021,0000471359,434.00,Revenue,Wernick Hire Ltd,0
South Ribble Borough Council,http://statistics.data.gov.uk/id/local-authority/30UE,Open Spaces,GM Refurbishment,4657,Tree works at Haig Avenue Green,11/08/2021,0000470763,945.00,Revenue,WESTFIELD TREE SERVICES LTD,0
South Ribble Borough Council,http://statistics.data.gov.uk/id/local-authority/30UE,Recreation & Sport,Other Salary Costs,1140,"Tennis Coaching provision July 2021 - South Ribble Tennis Centre, Tennis Coaching provision July 2021 - Community",06/08/2021,0000471018,"1,237.00",Revenue,What A Racquet Ltd,0
South Ribble Borough Council,http://statistics.data.gov.uk/id/local-authority/30UE,Open Spaces,GM Refurbishment,4657,6 no vinyl overlays for Haig Avenue,25/08/2021,0000471223,360.00,Revenue,WOODSTOCK SIGNS,0
South Ribble Borough Council,http://statistics.data.gov.uk/id/local-authority/30UE,Open Spaces,GM Refurbishment,4657,Supply of fence panels and posts as per quote reference 2104251A  for Ryden Avenue,04/08/2021,0000469934,"2,894.40",Revenue,ZAUN LIMITED,0
South Ribble Borough Council,http://statistics.data.gov.uk/id/local-authority/30UE,Open Spaces,GM Refurbishment,4657,Delivery of  fence panels and posts as per quote reference 2104251A,04/08/2021,0000469934,250.00,Revenue,ZAUN LIMITED,0
South Ribble Borough Council,http://statistics.data.gov.uk/id/local-authority/30UE,Open Spaces,GM Refurbishment,4657,Supply of fence panels and posts as per quote reference 2104251A for Haig Avenue (including courier delivery).,04/08/2021,0000469935,455.60,Revenue,ZAUN LIMITED,0
South Ribble Borough Council,http://statistics.data.gov.uk/id/local-authority/30UE,Open Spaces,GM Refurbishment,4657,Supply of fence panels and posts as per quote reference 2104251A for Hurst Grange,04/08/2021,0000469936,"4,072.80",Revenue,ZAUN LIMITED,0
